Cogmind - Beta 16 @@@ ROGUE MODE // 2025.11.21 @ 15:54:11 Player: Cogchaaaan Result: Escaped singularity! Performance ------------- Evolutions (9) 4500 Regions Visited (29) 5800 Robots Destroyed (864) 4320 Value Destroyed (53838) 53838 Prototype IDs (366) 7320 Alien Tech Used (6) 1200 Bonus (92983) 92983 TOTAL SCORE: 169961 Bonus ------- Triggered High Security 1000 High Alert Combat Kills 37294 Follower Combat Kills 78 Registered with UFD 300 Met Optimus in HQ 500 Met Zhirov 300 Met Warlord at Base 500 MAIN.C Attacked Warlord 500 Warlord Defense Kills 1272 Scanned by Researcher 500 Met Optimus at Protoforge 1000 Executed Drillbomb Mission 10000 Destroyed MAIN.C Guards 500 Met MAIN.C 5000 Destroyed MAIN.C Shell 5000 Destroyed MAIN.C 10000 Met Architect 300 Destroyed A8 300 Destroyed A6 400 Destroyed A5 500 Destroyed Architect 15000 Win 3000 Friendly Fire -261 Cogmind --------- Core Integrity 714/1600 Matter 280/300 Energy 602/610 System Corruption 0% Temperature Cool (11) Movement Hovering (35) Location Near Former Tau Ceti IV Parts ------- > --- POWER (3) -------- Quantum Reactor Zero-point Reactor Concept Zero-point Core > --- PROPULSION (8) --- Combat Antigrav System Combat Linear Gravjet Experimental Antigrav System Concept Combat Aerolev Unit Concept Combat Aerolev Unit Concept Combat Aerolev Unit Concept Gyrokinetic System Concept Gyrokinetic System > --- UTILITY (11) ----- Concept Thermoelectric Network Concept Antigrav Storage Unit Experimental Optical Array Concept Weapon Articulator Concept Core Analysis Suite Experimental Armor Integrity Analyzer Mini Quantum Capacitor Concept Phase Shift Module Centrium Heavy Armor Plating Advanced Dynamic Insulation System > --- WEAPON (3) ------- Concept Plasma Driver > --- INVENTORY (25) --- Zero-point Reactor Experimental Energy Well (600) Experimental Energy Well (600) Triangulator Concept Weapon Articulator Concept Core Analysis Suite Mini Quantum Capacitor Experimental Weapon Cycler Femtoactuators Experimental Phase Shifter Graphene Brace Enhanced Nova Cannon Hypervelocity Linear Accelerator Experimental Jetlance Peak State ------------ > --- POWER ------------ Concept Zero-point Core Concept Zero-point Core Concept Zero-point Core > --- PROPULSION ------- Experimental Antigrav System Experimental Antigrav System Gravjet Array Concept Combat Aerolev Unit Concept Combat Aerolev Unit Concept Gyrokinetic System Concept Gyrokinetic System > --- UTILITY ---------- Concept Thermoelectric Network Concept Antigrav Storage Unit Experimental Optical Array Concept Weapon Articulator Concept Core Analysis Suite Experimental Armor Integrity Analyzer Mini Quantum Capacitor Concept Reaction Jets Concept Phase Shift Module Concept Cloak Mesh Concept Energy Mantle > --- WEAPON ----------- Concept Plasma Driver Sigix Broadsword > --- INVENTORY -------- Combat Linear Gravjet Experimental Antigrav System Concept Combat Aerolev Unit Concept Thermoelectric Network Concept Chromion Battery Concept Weapon Articulator Concept Core Analysis Suite Mini Quantum Capacitor Femtoactuators Advanced Phase Shifter Concept Phase Shift Module Concept Cloak Mesh Graphene Brace Experimental Remote Shield Concept Antimissile System Concept Matter Streamer High-powered Transdimensional Reconstructor Concept Plasma Driver Concept Plasma Driver Concept Rapid Grenade Launcher Experimental Jetlance [Rating: 317] Favorites ----------- Power Concept Zero-point Core Engine Improved Ion Engine Power Core Concept Zero-point Core Reactor Micro Antimatter Reactor Propulsion Light Treads Treads Light Treads Leg Aluminum Leg Wheel Compact Wheel Hover Unit Concept Combat Aerolev Unit Flight Unit Impulse Thruster Array Utility Experimental Armor Integrity Analyzer Device Concept Weapon Articulator Storage Concept Antigrav Storage Unit Processor Experimental Armor Integrity Analyzer Hackware Hacking Suite Protection Medium Armor Plating Weapon Sigix Broadsword Energy Gun Particle Gun Energy Cannon Concept Plasma Driver Ballistic Gun Heavy Assault Rifle Ballistic Cannon Concept Miniperforator Launcher Fusion Bomb Launcher Special Weapon Improved Remote Datajack Slashing Weapon Sigix Broadsword Piercing Weapon Experimental Jetlance Build | -11 -10 -10 -9 -9 -8 -7 -7 -7 -7 -5 -5 -5 -5 -5 -5 -4 -4 -4 -4 -4 -3 -3 -3 -2 -2 -2 -1 -1 -1 ------- Run | Yrd Mat Min Mat Min Mat Fac Sto Rec Scr Fac Was Fac Upp Upp Zhi Pro Fac Upp Upp War Pro Res Tes Res Qua Frg Acc Com Ac0 Slots Evolved 18 | . . . 2 . 2 2 . . . 4 . . . . . . 2 . . . . 2 . 2 . . 2 . . Power 2 | . . . . . . . . . . . . . . . . . . . . . . 1 . . . . 1 . . Propulsion 6 | . . . 1 . . 1 . . . 2 . . . . . . 1 . . . . 1 . . . . . . . Utility 9 | . . . . . 2 1 . . . 2 . . . . . . 1 . . . . . . 2 . . 1 . . Weapon 1 | . . . 1 . . . . . . . . . . . . . . . . . . . . . . . . . . Parts Attached 269 | 8 7 2 22 1 36 4 16 3 8 13 . 4 . 1 . . 2 2 1 12 2 3 6 3 9 70 5 17 12 Power 28 | 1 2 . 3 . 2 1 2 . 2 1 . . . . . . . 1 1 . . 1 . . . 7 1 1 2 Engine 11 | 1 2 . 3 . 2 1 2 . . . . . . . . . . . . . . . . . . . . . . Core 9 | . . . . . . . . . 2 1 . . . . . . . . 1 . . 1 . . . 3 1 . . Reactor 8 | . . . . . . . . . . . . . . . . . . 1 . . . . . . . 4 . 1 2 Propulsion 79 | 2 2 . 11 . 18 2 1 3 2 6 . . . 1 . . . . . 2 . 1 2 . 6 17 . 1 2 Treads 33 | . 2 . 10 . 18 2 1 . . . . . . . . . . . . . . . . . . . . . . Leg 2 | 2 . . . . . . . . . . . . . . . . . . . . . . . . . . . . . Wheel 3 | . . . . . . . . 3 . . . . . . . . . . . . . . . . . . . . . Hover 12 | . . . . . . . . . . . . . . . . . . . . . . . . . . 9 . 1 2 Flight 29 | . . . 1 . . . . . 2 6 . . . 1 . . . . . 2 . 1 2 . 6 8 . . . Utility 107 | 3 2 1 4 1 5 1 4 . 2 3 . 4 . . . . 1 1 . 4 2 1 4 2 1 38 4 13 6 Device 53 | 2 1 1 . . 1 1 2 . . . . 2 . . . . 1 . . 2 1 1 1 2 . 17 3 10 5 Storage 11 | 1 . . 1 . 1 . . . . 1 . . . . . . . 1 . . . . . . 1 2 . 3 . Processor 13 | . . . . . 2 . . . 1 . . 1 . . . . . . . 1 . . . . . 8 . . . Hackware 6 | . . . . . . . 1 . 1 1 . 1 . . . . . . . . . . 1 . . . 1 . . Protection 24 | . 1 . 3 1 1 . 1 . . 1 . . . . . . . . . 1 1 . 2 . . 11 . . 1 Artifact . | . . . . . . . . . . . . . . . . . . . . . . . . . . . . . . Weapon 55 | 2 1 1 4 . 11 . 9 . 2 3 . . . . . . 1 . . 6 . . . 1 2 8 . 2 2 Energy Gun 2 | . . . . . 2 . . . . . . . . . . . . . . . . . . . . . . . . Energy Cannon 8 | . . . . . . . 1 . . 1 . . . . . . . . . . . . . 1 1 2 . 1 1 Ballistic Gun 18 | 2 1 . 4 . 5 . 4 . . . . . . . . . . . . . . . . . . 2 . . . Ballistic Cannon 3 | . . . . . . . 1 . . . . . . . . . . . . . . . . . . 1 . . 1 Launcher 9 | . . 1 . . 2 . 2 . . 1 . . . . . . . . . . . . . . . 2 . 1 . Special Weapon 9 | . . . . . . . 1 . . 1 . . . . . . 1 . . 6 . . . . . . . . . Impact Weapon . | . . . . . . . . . . . . . . . . . . . . . . . . . . . . . . Slashing Weapon 5 | . . . . . 2 . . . 2 . . . . . . . . . . . . . . . 1 . . . . Piercing Weapon 1 | . . . . . . . . . . . . . . . . . . . . . . . . . . 1 . . . Special Melee Weapon . | . . . . . . . . . . . . . . . . . . . . . . . . . . . . . . Unidentified Prototypes 38 | . . 1 1 . 1 . 6 . 1 1 . . . . 1 . . . . 5 1 . 2 . 4 11 . 2 1 Corrupted Parts 1 | . . . . . . . . . 1 . . . . . . . . . . . . . . . . . . . . System Corruption 4 | . . . . . . . . . 4 . . . . . . . . . . . . . . . . . . . . Parts Lost 56 | . 1 . 1 . 7 . 5 . . 1 . 2 . 1 . 1 . . . 3 . 3 4 2 1 7 . 5 12 Power 4 | . . . . . . . . . . . . . . . . . . . . . . . . . . 2 . . 2 Propulsion 16 | . . . . . 2 . 1 . . 1 . . . 1 . . . . . 1 . 2 1 2 1 2 . . 2 Utility 26 | . 1 . . . 1 . 3 . . . . 2 . . . 1 . . . 2 . 1 3 . . 3 . 3 6 Weapon 10 | . . . 1 . 4 . 1 . . . . . . . . . . . . . . . . . . . . 2 2 Highest Loss Streak 4 | . 1 . 1 . 2 . 2 . . 1 . 2 . 1 . 1 . . . 3 . 2 3 1 1 2 . 2 4 To Critical Strikes 3 | . . . . . . . . . . . . . . . . . . . . . . . . . . . . . 3 Average Backups 18 | 2 6 7 17 23 23 24 24 24 21 9 9 8 8 8 8 8 9 10 11 14 10 8 10 9 7 15 24 22 20 Power . | . . . . . 1 2 2 2 1 1 1 1 1 1 1 1 1 1 2 2 2 1 2 1 . 1 . . 1 Propulsion 3 | 1 1 1 4 7 5 7 8 7 7 2 2 2 2 1 1 1 . 1 1 2 2 . . . 1 1 2 2 1 Utility 8 | . . 2 7 10 10 9 8 8 7 2 2 1 1 2 2 2 2 3 3 3 2 2 3 1 1 7 15 14 12 Weapon 4 | . 3 4 4 4 4 4 4 4 3 2 2 1 2 2 2 1 1 2 2 3 3 3 4 5 2 5 5 4 3 Tool/Special . | . . . . . . . . . . . . . . . . . . . . . . . . . . . . . . Unused Backups 86 | . 2 1 2 2 7 2 3 3 . 4 . . . . . . . . . 2 . . . 3 1 41 . 3 10 Power 9 | . . . . . 1 1 . . . . . . . . . . . . . . . . . 1 . 5 . . 1 Propulsion 27 | . . 1 1 . . 1 . 1 . 2 . . . . . . . . . 1 . . . . . 19 . 1 . Utility 37 | . . . 1 . 4 . 3 2 . 2 . . . . . . . . . 1 . . . . 1 14 . 1 8 Weapon 12 | . 2 . . 2 2 . . . . . . . . . . . . . . . . . . 1 . 3 . 1 1 Tool/Special 1 | . . . . . . . . . . . . . . . . . . . . . . . . 1 . . . . . Average Slot Usage (%) 88 | . 99 100 99 100 97 98 97 93 57 85 82 81 82 82 82 80 77 79 78 78 76 80 71 67 73 80 91 93 91 Engine 4 | . 14 14 11 11 9 7 6 7 4 . . . . . . . . . . . . . . . . . . . . Core 4 | . . . . . . . . . 2 5 5 5 5 5 5 5 5 4 . . 4 8 9 8 8 3 12 11 5 Reactor 1 | . . . . . . . . . . . . . . . . . . . 5 4 . . . . . 3 . . 5 Treads 10 | . 8 28 33 33 26 30 29 13 . . . . . . . . . . . . . . . . . . . . . Wheel 1 | . . . . . . . . 11 22 . . . . . . . . . . . . . . . . . . . . Hover 7 | . . . . . . . . . . . . . . . . . . . . . . . . . . 2 28 29 31 Flight 7 | . . . . . . . . . . 31 29 29 29 29 29 29 31 31 31 31 31 30 27 22 24 21 . . . Device 11 | . 8 . . . 3 14 7 6 1 10 11 10 11 11 11 9 6 10 10 10 8 12 7 16 17 19 19 25 24 Storage 7 | . 14 14 11 11 9 7 7 7 6 5 5 5 5 5 5 5 5 5 5 5 5 4 4 3 3 4 4 5 4 Processor 7 | . . . . . 12 7 7 6 . 5 5 5 5 5 5 5 5 5 5 5 5 4 4 4 4 12 12 12 12 Hackware 3 | . . . . . . . 4 7 14 10 11 11 11 11 11 11 10 10 10 10 10 9 7 4 4 . 3 . . Protection 5 | . 5 14 11 11 8 7 7 6 . 4 5 4 5 5 5 5 5 5 5 5 5 4 4 4 6 3 4 . 1 Ballistic Gun 11 | . 27 27 32 33 25 18 21 22 . . . . . . . . . . . . . . . . . . . . . Slashing Weapon 2 | . . . . . . 4 . . 2 5 5 5 5 5 5 5 5 5 5 5 5 4 2 1 3 4 4 3 1 Peak Build Rating 317 | 7 8 16 18 21 41 49 57 55 44 73 68 78 75 70 70 76 88 83 87 104 93 109 117 119 161 290 315 317 310 Average Rating 135 | 5 7 8 15 20 29 46 52 52 31 60 68 70 70 69 69 68 78 79 81 90 88 106 101 109 131 230 312 311 276 On Entrance 84 | . 7 8 9 18 21 41 48 55 25 44 68 68 70 70 69 70 67 83 81 82 84 93 106 105 84 161 287 312 309 Avg Prop Armor Cover (%) 3 | . . . . . . . . 11 . 3 . . . . . . 1 1 . 1 . . . . 4 1 . . . Naked Turns . | . . . . . . . . . . . . . . . . . . . . . . . . . . . . . . Heaviest Build 133 | 12 20 22 105 103 107 111 114 112 91 28 25 25 25 25 25 25 29 42 42 44 42 47 45 47 50 88 112 120 133 Greatest Support 134 | 20 40 40 60 60 84 112 112 104 60 35 35 38 38 38 38 38 38 44 44 44 43 50 50 50 63 134 130 132 132 Greatest Overweight (x) 5 | . . . 1 1 3 . 1 3 5 1 . . . . . . . . . . . . . . . 4 . 1 1 Average Overweight (x) . | . . . . 1 1 . . 1 . . . . . . . . . . . . . . . . . . . . . Largest Inventory Capacity 25 | 8 8 8 25 25 25 25 25 25 25 25 10 10 10 10 10 10 10 15 15 15 15 15 15 15 10 25 25 25 25 Average Capacity 20 | 7 8 8 23 25 25 25 25 25 24 10 10 10 10 10 10 10 10 13 15 15 15 15 15 14 9 21 25 25 25 Most Carried 25 | 5 8 8 24 24 25 25 25 25 23 21 10 10 10 10 9 9 10 11 12 15 13 10 11 10 10 25 25 25 25 Average Carried 18 | 3 6 7 17 23 23 24 24 24 21 10 10 9 9 8 8 8 9 10 11 14 11 9 10 9 8 18 24 23 20 Final Capacity 25 | 8 8 8 25 25 25 25 25 25 25 10 10 10 10 10 10 10 10 15 15 15 15 15 15 5 10 25 25 25 25 Final Carried 25 | 5 7 8 22 24 25 25 25 22 21 10 10 9 10 8 9 9 10 11 12 13 11 10 10 5 9 25 25 25 14 Class Distribution -------------------- 17% | Mutant 14% | Scavenger-Sprinter 13% | Sprinter 11% | Hacker-Sprinter 11% | Scavenger-Tank 9% | Scavenger-Gunner 6% | Gunner 6% | Hacker-Scout 3% | Scavenger-Mutant Dominant Class ---------------- Mutant | -10/Materials Mutant | -10/Mines Scavenger-Tank | -9/Materials Scavenger-Tank | -9/Mines Scavenger-Gunner | -8/Materials Mutant | -7/Factory Gunner | -7/Storage Gunner | -7/Recycling Mutant | -7/Scraptown Hacker-Scout | -5/Factory Hacker-Scout | -5/Waste Hacker-Scout | -5/Factory Hacker-Scout | -5/Upper Caves Hacker-Scout | -5/Upper Caves Hacker-Scout | -5/Zhirov Hacker-Sprinter | -4/Proximity Caves Hacker-Sprinter | -4/Factory Hacker-Scout | -4/Upper Caves Hacker-Scout | -4/Upper Caves Hacker-Sprinter | -4/Warlord Hacker-Scout | -3/Proximity Caves Hacker-Scout | -3/Research Hacker-Scout | -3/Testing Infiltrator-Scout | -2/Research Infiltrator-Ninja | -2/Quarantine Scavenger-Sprinter | -2/Protoforge Hacker-Sprinter | -1/Access Sprinter | -1/Command Sprinter | -1/Access_0 Resources | -11 -10 -10 -9 -9 -8 -7 -7 -7 -7 -5 -5 -5 -5 -5 -5 -4 -4 -4 -4 -4 -3 -3 -3 -2 -2 -2 -1 -1 -1 ----------- Run | Yrd Mat Min Mat Min Mat Fac Sto Rec Scr Fac Was Fac Upp Upp Zhi Pro Fac Upp Upp War Pro Res Tes Res Qua Frg Acc Com Ac0 Matter Collected 23737 | 332 181 168 1039 236 1568 275 1201 261 314 311 . 38 78 15 44 15 47 20 60 274 32 . . 172 . 5443 8096 2772 745 Remotely 8359 | 130 . . . . . . . . . . . . . . . . . . . . . . . . . . 7194 1035 . Salvage Created 59851 | 127 488 137 1753 395 2502 480 2130 354 . 364 . 115 . . 441 . . 83 . 337 . . . 172 . 7329 21088 18654 2902 Parts 1858 | 8 28 11 118 28 121 27 106 12 . 10 . 5 . . 2 . . . . 7 . . . 5 . 318 397 490 165 Haulers Intercepted 24 | . 2 . 6 . 6 . 5 . . 3 . 1 . . . . . . . . . . . . . 1 . . . Recyclers Shooed 10 | . 2 . 1 . 3 . 2 1 . . . . . . . . . . . . . . . . . . . 1 . Parts Field Recycled . | . . . . . . . . . . . . . . . . . . . . . . . . . . . . . . Retrieved Matter . | . . . . . . . . . . . . . . . . . . . . . . . . . . . . . . Parts Self-Destructed 5 | . . . . . . . . . . . . . . . 2 . . . . . 3 . . . . . . . . Prevented . | . . . . . . . . . . . . . . . . . . . . . . . . . . . . . . Parts Restored 14 | . . . . . . . . . . . . . . . . . . . . . . . . . . 14 . . . Faulty 14 | . . . . . . . . . . . . . . . . . . . . . . . . . . 14 . . . Kills | -11 -10 -10 -9 -9 -8 -7 -7 -7 -7 -5 -5 -5 -5 -5 -5 -4 -4 -4 -4 -4 -3 -3 -3 -2 -2 -2 -1 -1 -1 ------- Run | Yrd Mat Min Mat Min Mat Fac Sto Rec Scr Fac Was Fac Upp Upp Zhi Pro Fac Upp Upp War Pro Res Tes Res Qua Frg Acc Com Ac0 Combat Hostiles Destroyed 743 | . 10 4 31 11 43 7 34 3 . 4 . . . . . . . . . 10 . . . . . 106 247 203 30 Melee 54 | . . . . . . . . . . . . . . . . . . . . . . . . . . 30 . 9 15 Guns 143 | . 10 3 31 11 41 7 25 3 . . . . . . . . . . . . . . . . . 12 . . . Cannons 466 | . . . . . . . . . . . . . . . . . . . . 1 . . . . . 51 244 162 8 AOE 37 | . . 1 . . 2 . 9 . . 4 . . . . . . . . . 9 . . . . . 12 . . . Classes Destroyed 29 | 2 4 1 4 1 2 1 1 . . . . . . . . . . . . 1 . . . . . 9 1 2 . Worker 19 | . . . 2 1 . 2 4 . . . . . . . . . . . . . . . . . . . 5 5 . Builder 12 | . . 1 3 . 1 1 1 . . . . . . . . . . . . . . . . . . . 5 . . Tunneler 3 | 2 . . . . . 1 . . . . . . . . . . . . . . . . . . . . . . . Hauler 24 | . 2 . 6 . 6 . 5 . . 3 . 1 . . . . . . . . . . . . . 1 . . . Recycler 19 | 1 2 . 1 . 3 2 2 1 . . . . . . . . . . . . . . . 1 . . 2 4 . Carrier 3 | . . . . . . . . . . . . . . . . . . . . . . . . . . . 1 2 . Mechanic 43 | . . . 1 . 2 . . . . . . . . . . . . . . . . . . . . 6 21 13 . Operator 5 | . . . 1 . . . 1 . . . . . . . . . . . . . . . . . . . 2 1 . Drone 21 | . . . . . . . . . . . . . . . . . . . . . . . . . . 21 . . . Watcher 25 | . 2 . 3 . 5 . 2 . . . . . . . . . . . . . . . . 1 . 2 3 7 . Swarmer 47 | . 7 2 9 3 8 2 . . . 4 . . . . . . . . . . . . . . . 6 . 6 . Cutter 2 | . . . . . . . . . . . . . . . . . . . . . . . . . . 2 . . . Saboteur 25 | . . . . . . . . . . . . . . . . . . . . 1 . . . . . . 15 9 . Grunt 257 | . 3 2 14 7 26 3 18 . . . . . . . . . . . . 9 . . . . . 12 77 86 . Brawler 36 | . . . . . 1 . 2 . . . . . . . . . . . . . . . . . . 2 20 11 . Duelist 24 | . . . . 1 . . 2 . . . . . . . . . . . . . . . . . . . 11 10 . Protector 28 | . . . . . . . . . . . . . . . . . . . . . . . . . . 2 13 13 . Researcher 7 | . . . . . . . . . . . . . . . . . . . . . . . . . . 7 . . . Sentry 47 | . . . 8 . 7 . 6 3 . . . . . . . . . . . . . . . . . 15 3 5 . Demolisher 1 | . . . . . . . . . . . . . . . . . . . . . . . . . . . . 1 . Hunter 36 | . . . . . . . 2 . . . . . . . . . . . . . . . . . . 8 16 10 . Programmer 65 | . . . . . . 2 4 . . . . . . . . . . . . . . . . . . 4 36 19 . Heavy 3 | . . . . . 1 . . . . . . . . . . . . . . . . . . . . . . 2 . Behemoth 1 | . . . . . . . . . . . . . . . . . . . . . . . . . . . . 1 . M Guard 2 | . . . . . . . . . . . . . . . . . . . . . . . . . . . . 2 . Enhanced Grunt 19 | . . . . . . . . . . . . . . . . . . . . . . . . . . . . . 19 Enhanced Hunter 7 | . . . . . . . . . . . . . . . . . . . . . . . . . . . . . 7 Hotshot 3 | . . . . . . . . . . . . . . . . . . . . . . . . . . 3 . . . Decapitator 9 | . . . . . . . . . . . . . . . . . . . . . . . . . . 9 . . . Immortal 6 | . . . . . . . . . . . . . . . . . . . . . . . . . . 6 . . . Combat Programmer 2 | . . . . . . . . . . . . . . . . . . . . . . . . . . . . 2 . Investigator 5 | . . . . . . . . . . . . . . . . . . . . . . . . . . . 3 2 . Striker 40 | . . . . . . . . . . . . . . . . . . . . . . . . . . 2 23 15 . Executioner 52 | . . . . . . . . . . . . . . . . . . . . . . . . . . 10 33 9 . Alpha 7 2 | . . . . . . . . . . . . . . . . . . . . . . . . . . 2 . . . V-Series 2 | . . . . . . . . . . . . . . . . . . . . . . . . . . 2 . . . Elite 1 | . . . . . . . . . . . . . . . . . . . . . . . . . . 1 . . . Thug 1 | . . . . . . . 1 . . . . . . . . . . . . . . . . . . . . . . Best Kill Streak 62 | 2 4 2 11 4 5 7 7 1 . 4 . 1 . . . . . . . 4 . . . 1 . 12 62 35 3 Combat Bots Only 43 | . 3 2 6 3 4 3 7 1 . 4 . . . . . . . . . 4 . . . . . 11 43 31 3 Max Kills in Single Turn 4 | 1 2 1 2 2 2 1 4 1 . 2 . 1 . . . . . . . 3 . . . 1 . 4 3 3 1 Gunslinging 1 | . . . 1 1 1 . . . . . . . . . . . . . . . . . . . . . . . . Exploded 3 | . . 1 . . 2 . 3 . . 2 . . . . . . . . . 3 . . . . . 3 . . . Melee 1 | . . . . . . . . . . . . . . . . . . . . . . . . . . 1 . 1 1 Uniques/NPCs Destroyed 6 | . . . . . . . . . . . . . . . . . . . . . . . . . . . . 2 4 MAIN.C Shell (-1/Command) MAIN.C (-1/Command) A8 (-1/Access_0) A6 (-1/Access_0) A5 (-1/Access_0) Architect (-1/Access_0) Combat | -11 -10 -10 -9 -9 -8 -7 -7 -7 -7 -5 -5 -5 -5 -5 -5 -4 -4 -4 -4 -4 -3 -3 -3 -2 -2 -2 -1 -1 -1 -------- Run | Yrd Mat Min Mat Min Mat Fac Sto Rec Scr Fac Was Fac Upp Upp Zhi Pro Fac Upp Upp War Pro Res Tes Res Qua Frg Acc Com Ac0 Hostile Shots Fired 2694 | . 37 7 117 26 180 37 202 27 . 9 . 26 4 8 . 30 10 10 2 82 16 37 21 44 13 237 453 462 597 Missed 1509 | . 11 3 32 3 48 9 72 12 . 2 . 13 3 5 . 17 5 4 2 58 7 21 13 24 5 123 343 283 391 Intercepted 1 | . . . . . . . . . . . . . . . . . . . . . . . . . . . . 1 . Hits 1185 | . 26 4 85 23 132 28 130 15 . 7 . 13 1 3 . 13 5 6 . 24 9 16 8 20 8 114 110 179 206 Melee 31 | . . . . 1 1 . . . . . . . . . . . . . . . . . . . . 11 5 9 4 Projectile 1154 | . 26 4 85 22 131 28 130 15 . 7 . 13 1 3 . 13 5 6 . 24 9 16 8 20 8 103 105 170 202 AOE 16 | . . . . . . . . . . . . . . . . . . . . 4 . . . . . 5 3 4 . Critical Strikes 82 | . . . 1 . 9 2 1 . . . . . . . . . 2 . . . . 1 . 2 . 14 7 10 33 Actively Blocked 35 | . . . . . . . . . . . . . . . . . . . . . . . . 2 . 14 . 3 16 Part Disruptions 2 | . . . . . . . . . . . . . . . . . . . . . . . . . . . . 1 1 Actively Blocked 1 | . . . . . . . . . . . . . . . . . . . . . . . . . . . . . 1 Damage Taken 20668 | . 241 50 1046 286 2391 445 1596 117 . 194 . 523 12 58 . 200 105 83 . 555 190 425 260 407 168 3554 1203 2504 4055 Core 2431 | . 49 6 136 35 280 31 208 . . 54 . 102 . 40 . 13 . 21 . 141 46 67 35 70 6 342 53 168 528 Absorbed by Shields 6033 | . . . . . . . . . . . . . . . . . . . . . . . . . . 100 1165 2266 2502 Redirected to Shielding 374 | . . . . . . . . . . . . . . . . . . . . . . . . . . 77 132 165 . Ignored by Resistances 1407 | . . . 3 . . . . . . . . . . . . . . . . 81 . . . . . 192 278 564 289 Regen/Repaired (Parts) 5479 | . . . 143 . 259 120 . . 98 . . 232 . . . . . . . 134 . . . . 109 1636 853 1520 375 Core Remaining (%) 70 | 100 . 78 . 57 49 . . . 65 . . . . . . 79 . . . . 81 . 92 . . 62 . . 44 Volleys Fired 1551 | 13 44 8 95 22 135 19 73 8 . 9 . 2 1 . . 1 5 . 3 14 . . . 4 3 209 362 364 157 Largest 3 | 2 2 2 3 3 3 3 3 3 . 1 . 1 1 . . 1 1 . 1 1 . . . 1 1 1 1 1 1 Hottest 140 | 40 40 40 69 69 121 79 79 71 . 90 . 90 90 . . 90 90 . 90 39 . . . 120 120 140 140 140 140 Shots Fired 2274 | 26 88 15 276 65 389 57 205 24 . 9 . 2 1 . . 1 5 . 3 14 . . . 4 3 206 361 363 157 Gun 1206 | 26 88 14 274 65 386 57 198 24 . . . . . . . . . . . . . . . . . 74 . . . Cannon 1017 | . . . . . . . . . . 3 . 2 1 . . 1 4 . 3 . . . . 4 3 117 361 361 157 Launcher 35 | . . 1 2 . 3 . 7 . . 4 . . . . . . . . . 1 . . . . . 15 . 2 . Special 16 | . . . . . . . . . . 2 . . . . . . 1 . . 13 . . . . . . . . . Kinetic 1687 | 26 88 14 274 65 373 57 198 24 . . . . . . . . . . . . . . . . . 167 324 77 . Thermal 533 | . . . . . 13 . . . . 3 . 2 1 . . 1 4 . 3 . . . . 4 3 24 37 284 154 Explosive 46 | . . 1 2 . 3 . 7 . . 4 . . . . . . . . . 12 . . . . . 15 . 2 . Electromagnetic 3 | . . . . . . . . . . . . . . . . . . . . . . . . . . . . . 3 Robot Hit Streak 47 | 5 15 11 15 17 21 9 31 26 . 1 . . . . . . . . . 3 . . . . . 38 46 47 12 Robot Miss Streak 6 | 4 3 1 6 4 4 2 2 1 . 1 . . . . . . . . . 1 . . . . . 4 6 4 3 Penetration Max 3 | . . . . . . . . . . . . . . . . . . . . . . . . . . 2 3 3 1 Secondary Targets 23 | . . . 7 2 6 2 6 . . . . . . . . . . . . . . . . . . . . . . Max Gunslinging Chain 1 | . . . 1 1 1 1 1 . . . . . . . . . . . . . . . . . . . . . . Capacitor 390 | . . . . . . . . . . . . . . . . . . . . . . . . . . . 27 206 157 Shots Hit Robots 1992 | 13 56 10 175 44 276 46 166 20 . 16 . 2 . . 15 . . 1 . 2 . . . 2 3 228 343 378 196 Core Hits 1962 | 5 24 9 78 21 117 20 112 10 . 9 . 1 . . 4 . . 1 . 21 . . . 2 1 235 816 378 98 Critical Kills 442 | . . . . . 1 1 . . . . . . . . . . . . . . . . . . . 61 270 103 6 Critical Parts Destroyed 436 | . . . . . 1 1 1 . . . . . . . . . . . . . . . . . . 73 284 76 . Critical Strikes 980 | . . . . . 2 2 1 . . . . . . . . . . . . . . . . . . 151 570 205 49 Meltdown 44 | . . . . . . . . . . . . . . . . . . . . . . . . . . 1 3 34 6 Destroy 859 | . . . . . 2 2 1 . . . . . . . . . . . . . . . . . . 142 567 145 . Impale 77 | . . . . . . . . . . . . . . . . . . . . . . . . . . 8 . 26 43 Melee Attacks 512 | . . . . . 3 15 7 . . 38 . 35 2 . 16 5 10 2 4 70 1 15 2 13 17 101 . 65 91 Impact . | . . . . . . . . . . . . . . . . . . . . . . . . . . . . . . Slashing 348 | . . . . . 3 15 7 . . 38 . 35 2 . 16 5 10 2 4 70 1 15 2 13 17 80 . 13 . Piercing 164 | . . . . . . . . . . . . . . . . . . . . . . . . . . 21 . 52 91 Sneak Attacks 46 | . . . . . . 5 2 . . 7 . 1 . . . . . . . . . . . 1 . 28 . 1 1 Combat Hostiles 1 | . . . . . . . . . . . . . . . . . . . . . . . . . . . . . 1 Follow-up Attacks 11 | . . . . . . . . . . . . . . . 2 . . . . . . . . . 1 3 . 5 . Damage Inflicted 89876 | 156 588 164 2481 710 5038 1081 4694 428 . 1505 . 119 . . 1265 . . 62 . 2710 . . . 123 121 14932 6701 34136 12862 Guns 15807 | 156 588 113 2463 666 4862 720 3049 421 . . . . . . . . . . . . . . . . . 2769 . . . Cannons 46575 | . . . . . . . . . . . . . . . . . . . . . . . . . . 1621 6701 30134 8119 Explosions 7584 | . . 38 . . 155 . 1460 . . 501 . . . . . . . . . 2498 . . . . . 2932 . . . Melee 19567 | . . . . . . 361 157 . . 1004 . 119 . . 1265 . . 62 . . . . . 123 121 7610 . 4002 4743 Ramming 131 | . . 13 18 44 21 . 28 7 . . . . . . . . . . . . . . . . . . . . . Kinetic 22085 | 156 588 113 2463 666 4723 720 3049 421 . . . . . . . . . . . . . . . . . 3729 4423 1034 . Thermal 40192 | . . . . . 139 . . . . . . . . . . . . . . . . . . . . 661 2278 29100 8014 Explosive 7584 | . . 38 . . 155 . 1460 . . 501 . . . . . . . . . 2498 . . . . . 2932 . . . Electromagnetic 105 | . . . . . . . . . . . . . . . . . . . . . . . . . . . . . 105 Impact . | . . . . . . . . . . . . . . . . . . . . . . . . . . . . . . Slashing 10618 | . . . . . . 361 157 . . 1004 . 119 . . 1265 . . 62 . 212 . . . 123 121 6452 . 742 . Piercing 9161 | . . . . . . . . . . . . . . . . . . . . . . . . . . 1158 . 3260 4743 Highest Corruption 11 | . . . . . . 1 1 1 4 . 5 11 11 11 11 11 1 1 1 1 . 1 4 . . 7 5 5 . Average Corruption 3 | . . . . . . 1 1 1 4 . 5 6 11 11 11 11 1 1 1 1 . 1 2 . . 5 2 3 . Corruption Purged 11 | . . . . . . . . . . . . . . . . . . . . . . . . . . . . 11 . Corruption Blocked . | . . . . . . . . . . . . . . . . . . . . . . . . . . . . . . Effects 261 | . . . . . . . 12 9 . . 1 16 5 3 3 7 . 1 . . . 2 4 . . 104 29 65 . Message Errors 61 | . . . . . . . 4 4 . . . 7 . 1 . 1 . . . . . . . . . 18 8 18 . Matter Fused 67 | . . . . . . . 3 2 . . 1 4 2 1 3 1 . . . . . 1 . . . 33 3 13 . Heat Flow Errors 34 | . . . . . . . 1 2 . . . 2 1 . . . . . . . . . 3 . . 12 5 8 . Energy Discharges 32 | . . . . . . . . . . . . . 1 . . . . . . . . . . . . 18 7 6 . Parts Rejected 2 | . . . . . . . . . . . . . . . . . . . . . . . . . . 2 . . . Parts Fused 4 | . . . . . . . 2 . . . . . . . . . . . . . . . . . . . . 2 . Data Loss (minor) 35 | . . . . . . . 1 1 . . . 3 1 1 . 2 . 1 . . . 1 . . . 11 4 9 . Data Loss (major) 8 | . . . . . . . . . . . . . . . . . . . . . . . . . . 4 1 3 . Misfires 2 | . . . . . . . . . . . . . . . . . . . . . . . . . . . . 2 . Alerts 6 | . . . . . . . 1 . . . . . . . . . . . . . . . 1 . . 3 . 1 . Misdirections 3 | . . . . . . . . . . . . . . . . 3 . . . . . . . . . . . . . Weapon Failures 7 | . . . . . . . . . . . . . . . . . . . . . . . . . . 3 1 3 . Overload Shots . | . . . . . . . . . . . . . . . . . . . . . . . . . . . . . . Overflow Damage 6254 | . . . . . . 81 14 . . 106 . . . . 305 . . . . 4 . . . . . 3154 35 2070 485 Projectiles 2130 | . . . . . . . . . . . . . . . . . . . . . . . . . . . 35 1982 113 Explosions 64 | . . . . . . . . . . 27 . . . . . . . . . 4 . . . . . 33 . . . Melee 4060 | . . . . . . 81 14 . . 79 . . . . 305 . . . . . . . . . . 3121 . 88 372 Knockbacks 144 | . . . . . . . . 1 . . . . . . . . . . . . . . . . . 6 101 36 . Impact 1 | . . . . . . . . 1 . . . . . . . . . . . . . . . . . . . . . Kinetic 138 | . . . . . . . . . . . . . . . . . . . . . . . . . . 6 98 34 . Secondary 5 | . . . . . . . . . . . . . . . . . . . . . . . . . . . 3 2 . Self-Inflicted Damage 258 | . . . . . 89 . 169 . . . . . . . . . . . . . . . . . . . . . . Shots 5 | . . . . . 2 . 3 . . . . . . . . . . . . . . . . . . . . . . Rammed 20 | . . 4 5 5 2 . 2 2 . . . . . . . . . . . . . . . . . . . . . Targets Rammed 22 | . . 4 5 5 2 . 3 3 . . . . . . . . . . . . . . . . . . . . . Kicked . | . . . . . . . . . . . . . . . . . . . . . . . . . . . . . . Crushed 2 | . . . . . . . 1 1 . . . . . . . . . . . . . . . . . . . . . Highest Temperature 571 | . 12 18 203 109 187 3 74 142 . 72 . 204 250 8 . 8 6 . 6 . . 11 237 76 . 190 571 250 183 Average Temperature 79 | . 5 8 36 37 37 3 12 62 . 25 . 46 75 3 . 6 3 . 4 . . 3 89 38 . 74 131 107 109 Received Heat Transfer 2741 | . 72 24 408 123 990 90 474 36 . . . 9 . 30 . . . . . 72 24 . . . 9 141 64 175 . Thermoelectric Energy+ 7580 | . . . . . . . . . . . . . . . . . . . . . . . . . . . . 6246 1334 Effects 14 | . . . 3 . . . . . . . . . . . . . . . . . . . . . . . 2 9 . Energy Bleed 3 | . . . . . . . . . . . . . . . . . . . . . . . . . . . 1 2 . Interference 10 | . . . 3 . . . . . . . . . . . . . . . . . . . . . . . . 7 . Matter Decay 1 | . . . . . . . . . . . . . . . . . . . . . . . . . . . 1 . . Siege Activations . | . . . . . . . . . . . . . . . . . . . . . . . . . . . . . . Martial Activations . | . . . . . . . . . . . . . . . . . . . . . . . . . . . . . . Shielding Activations . | . . . . . . . . . . . . . . . . . . . . . . . . . . . . . . Robots Disrupted 1 | . . . . . . . . . . 1 . . . . . . . . . . . . . . . . . . . Combat Hostiles . | . . . . . . . . . . . . . . . . . . . . . . . . . . . . . . Robots Corrupted 1 | . . . . . . . . . . . . . . . . . . . . . . . . . . . . . 1 Combat Hostiles 1 | . . . . . . . . . . . . . . . . . . . . . . . . . . . . . 1 Parts Fried 4 | . . . . . . . . . . . . . . . . . . . . . . . . . . . . . 4 Impact Corruptions . | . . . . . . . . . . . . . . . . . . . . . . . . . . . . . . Robots Melted 45 | . . . . . . . . . . . . . . . . . . . . . . . . . . 1 3 35 6 Combat Hostiles 42 | . . . . . . . . . . . . . . . . . . . . . . . . . . 1 3 32 6 Parts Melted 122 | . . . . . . . 2 . . . . . . . . . . . . . . . . . . 4 8 87 21 Heat Transferred 19850 | . . . . . 333 . . . . . . . . . . . . . . . . . . . . 400 1223 14721 3173 Parts Sabotaged 9 | . . . . . . . . . . . . . . . . . . . . . . . . . . . 3 6 . Parts Stolen . | . . . . . . . . . . . . . . . . . . . . . . . . . . . . . . Parts Stripped . | . . . . . . . . . . . . . . . . . . . . . . . . . . . . . . Power Chain Reactions . | . . . . . . . . . . . . . . . . . . . . . . . . . . . . . . Alert | -11 -10 -10 -9 -9 -8 -7 -7 -7 -7 -5 -5 -5 -5 -5 -5 -4 -4 -4 -4 -4 -3 -3 -3 -2 -2 -2 -1 -1 -1 ------- Run | Yrd Mat Min Mat Min Mat Fac Sto Rec Scr Fac Was Fac Upp Upp Zhi Pro Fac Upp Upp War Pro Res Tes Res Qua Frg Acc Com Ac0 Maximum Alert Level 5 | . . . 1 . 2 1 3 1 . . . . . . . . 2 . . . . 2 1 2 1 5 5 5 . Low Security (%) 41 | 100 100 100 75 100 45 90 56 47 . 100 100 100 . . . . . . . . . 42 . 41 . 4 . . . Level 1 12 | . . . 24 . 37 9 18 52 . . . . . . . . . . . . . 34 100 18 100 7 . . . Level 2 5 | . . . . . 16 . 9 . . . . . . . . . 100 . . . . 23 . 39 . 12 . . . Level 3 7 | . . . . . . . 16 . . . . . . . . . . . . . . . . . . 38 . . . Level 4 1 | . . . . . . . . . . . . . . . . . . . . . . . . . . 10 . . . Level 5 12 | . . . . . . . . . . . . . . . . . . . . . . . . . . 26 1 40 . High Security 18 | . . . . . . . . . . . . . . . . . . . . . . . . . . . 98 59 . Max Security . | . . . . . . . . . . . . . . . . . . . . . . . . . . . . . . Peak Influence 10198 | 5 194 40 286 133 488 212 812 309 . 168 30 114 . . . . 571 . . . . 488 329 592 324 3063 8389 10198 . Initial 5368 | . . . . 109 . 212 81 309 . . 25 14 . . . . 557 . . . . 110 282 168 324 148 1837 5368 . Average 1876 | . 89 1 141 41 217 149 304 203 . 78 22 20 . . . . 556 . . . . 263 276 343 287 1303 5175 8482 . Influence Increases 25233 | 15 346 99 988 265 1348 263 1252 310 . 342 15 302 60 60 15 240 521 140 45 365 204 523 137 540 231 3975 6562 5398 672 Destroy 0b10 Robot/C 13820 | . 200 80 620 220 860 140 700 60 . 80 . . . . . . . . . 200 40 . . . . 1920 4780 3920 . Destroy 0b10 Robot/NC 1035 | 15 30 5 85 5 85 30 75 10 . 15 . 5 . . 15 . . 5 . . . . . 10 . 165 255 225 . Destroy Leader 2196 | . 28 10 168 40 192 30 204 . . 16 . 2 . . . . . . . . 10 . . 2 . 214 696 584 . Allied During Kill 39 | . . . . . . . 27 . . . . . . . . . . . . . 4 . . . . . 8 . . Successful Hack 341 | . 12 . 28 . 24 24 16 29 . 44 . 17 . . . . . . . . . 15 . 63 30 . 12 27 . Select Force Hacks 210 | . . . . . . . . 210 . . . . . . . . . . . . . . . . . . . . . Disable Machine 885 | . . . 30 . 60 . 150 . . . . 15 . . . . . . . . . 15 15 . 60 330 45 90 75 Anti-Garrison Action 150 | . . . . . . . . . . . . . . . . . . . . . . . . . . 150 . . . Destroy Structure 2297 | . 1 4 12 . 82 9 65 1 . 112 . 68 . . . . 26 . . . . 28 2 45 21 371 511 402 537 Advance Influence 450 | . . . . . . . . . . . . . . . . . 450 . . . . . . . . . . . . Partial Spotted 540 | . . . . . . . . . . 75 15 30 . . . . 30 . . . . 135 30 45 15 45 45 15 60 Lose Combat Pursuer 3270 | . 75 . 45 . 45 30 15 . . . . 165 60 60 . 240 15 135 45 165 150 330 90 375 105 780 210 135 . Influence Decreases 24681 | 15 346 99 706 547 881 549 640 1087 16 268 69 216 100 63 78 70 123 261 156 607 134 184 341 261 544 1177 1236 3447 10460 Entered New Map 17353 | . . . . 173 . 255 100 484 16 . 49 6 40 13 63 . 63 211 86 336 94 54 221 131 254 117 1226 3021 10340 Time Decay 5728 | 15 336 99 546 374 671 294 470 478 . 248 20 190 60 40 15 40 60 50 70 206 20 90 80 110 160 770 10 206 . Search Patrol Dispatched 100 | . . . . . . . . . . . . . . . . . . . . . . . . . 100 . . . . Lost Part 550 | . 10 . 10 . 60 . 50 . . 10 . 20 . 10 . 10 . . . 30 . 30 40 20 10 70 . 50 120 Lost Ally 375 | . . . . . . . 20 . . 10 . . . . . 20 . . . 35 20 10 . . 20 220 . 20 . Purge Threat 575 | . . . 150 . 150 . . 125 . . . . . . . . . . . . . . . . . . . 150 . Squads Dispatched 200 | . 2 . 3 1 5 3 11 . . 6 . 6 . . . . 5 . . . . 5 1 3 3 8 98 40 . Investigation 26 | . 2 . 2 1 1 . . . . 4 . 3 . . . . 5 . . . . 4 . 1 . 2 . 1 . Extermination 14 | . . . . . . 2 3 . . 1 . 2 . . . . . . . . . 1 1 1 2 . . 1 . Reinforcement 27 | . . . 1 . 4 1 6 . . 1 . 1 . . . . . . . . . . . 1 1 4 5 2 . Assault 132 | . . . . . . . 2 . . . . . . . . . . . . . . . . . . 2 92 36 . Garrison 1 | . . . . . . . . . . . . . . . . . . . . . . . . . . . 1 . . Intercept . | . . . . . . . . . . . . . . . . . . . . . . . . . . . . . . Searches Triggered 1 | . . . . . . . . . . . . . . . . . . . . . . . . . 1 . . . . Construction Impeded 6 | . . . . . 1 . 1 . . . . . . . . . . . . . . . . . . . 4 . . Haulers Reinforced 4 | . . . . . . . 2 . . 1 . . . . . . . . . . . . . . . . 1 . . Active Scanning Responses . | . . . . . . . . . . . . . . . . . . . . . . . . . . . . . . Cargo Convoy Interrupts 1 | . . . . . . . . . . 1 . . . . . . . . . . . . . . . . . . . Stealth | -11 -10 -10 -9 -9 -8 -7 -7 -7 -7 -5 -5 -5 -5 -5 -5 -4 -4 -4 -4 -4 -3 -3 -3 -2 -2 -2 -1 -1 -1 --------- Run | Yrd Mat Min Mat Min Mat Fac Sto Rec Scr Fac Was Fac Upp Upp Zhi Pro Fac Upp Upp War Pro Res Tes Res Qua Frg Acc Com Ac0 Distress Signals 54 | . 3 1 4 . 4 . 1 . . . . . . . . 1 . . . 1 . 4 . 2 2 9 4 18 . Communications Jammed . | . . . . . . . . . . . . . . . . . . . . . . . . . . . . . . Distress Signals . | . . . . . . . . . . . . . . . . . . . . . . . . . . . . . . Times Spotted 1241 | . 14 4 46 11 60 12 44 3 . 6 5 33 4 4 . 18 4 4 1 76 13 28 10 28 13 187 309 243 61 Peak Tracking Total 21 | . 4 2 4 3 5 5 7 1 . 4 5 10 4 4 . 12 3 7 3 20 9 17 6 15 9 15 13 21 8 Tactical Retreats 101 | . 3 . 2 . 2 2 1 . . . . 6 1 1 . 4 1 2 1 6 3 6 3 5 3 29 11 9 . Traps | -11 -10 -10 -9 -9 -8 -7 -7 -7 -7 -5 -5 -5 -5 -5 -5 -4 -4 -4 -4 -4 -3 -3 -3 -2 -2 -2 -1 -1 -1 ------- Run | Yrd Mat Min Mat Min Mat Fac Sto Rec Scr Fac Was Fac Upp Upp Zhi Pro Fac Upp Upp War Pro Res Tes Res Qua Frg Acc Com Ac0 Traps Triggered 27 | . 3 . . . 1 . . . . 3 . 2 . . . . . . . . . 1 1 2 1 12 . 1 . Indirectly . | . . . . . . . . . . . . . . . . . . . . . . . . . . . . . . Trap Hack Attempts . | . . . . . . . . . . . . . . . . . . . . . . . . . . . . . . Triggered . | . . . . . . . . . . . . . . . . . . . . . . . . . . . . . . Disarmed . | . . . . . . . . . . . . . . . . . . . . . . . . . . . . . . Reprogrammed . | . . . . . . . . . . . . . . . . . . . . . . . . . . . . . . Reused . | . . . . . . . . . . . . . . . . . . . . . . . . . . . . . . Traps Extracted . | . . . . . . . . . . . . . . . . . . . . . . . . . . . . . . Installed . | . . . . . . . . . . . . . . . . . . . . . . . . . . . . . . Triggered . | . . . . . . . . . . . . . . . . . . . . . . . . . . . . . . Machines | -11 -10 -10 -9 -9 -8 -7 -7 -7 -7 -5 -5 -5 -5 -5 -5 -4 -4 -4 -4 -4 -3 -3 -3 -2 -2 -2 -1 -1 -1 ---------- Run | Yrd Mat Min Mat Min Mat Fac Sto Rec Scr Fac Was Fac Upp Upp Zhi Pro Fac Upp Upp War Pro Res Tes Res Qua Frg Acc Com Ac0 Machines Disabled 66 | . . . 2 . 4 . 10 . . . . 1 . . . . . . . 2 . 1 1 . 4 27 3 6 5 Max in Single Turn 3 | . . . 1 . 3 . 2 . . . . 1 . . . . . . . 1 . 1 1 . 1 1 1 1 1 Garrison Access 5 | . . . . . 1 . 1 . . 1 . . . . . . . . . . . . 1 . . 1 . . . Machines Repaired . | . . . . . . . . . . . . . . . . . . . . . . . . . . . . . . Machines Dismantled 3 | . . . . . . . 2 . . . . . . . . . . . . 1 . . . . . . . . . Machines Sabotaged . | . . . . . . . . . . . . . . . . . . . . . . . . . . . . . . Overloaded Fab Kills . | . . . . . . . . . . . . . . . . . . . . . . . . . . . . . . Hacking | -11 -10 -10 -9 -9 -8 -7 -7 -7 -7 -5 -5 -5 -5 -5 -5 -4 -4 -4 -4 -4 -3 -3 -3 -2 -2 -2 -1 -1 -1 --------- Run | Yrd Mat Min Mat Min Mat Fac Sto Rec Scr Fac Was Fac Upp Upp Zhi Pro Fac Upp Upp War Pro Res Tes Res Qua Frg Acc Com Ac0 Machines Accessed 138 | . 8 1 15 1 15 3 8 13 3 15 . 11 . . 4 . 6 . 1 1 . 11 3 6 3 3 1 6 . Terminals 75 | . 7 . 10 . 9 1 7 6 . 8 . 4 . . . . 1 . . . . 5 2 5 3 1 1 5 . Fabricators 5 | . . . . . . . . . . 2 . 2 . . . . . . . . . 1 . . . . . . . Repair Stations 7 | . . . 1 . 2 1 . . . . . 2 . . . . . . . . . . . . . . . 1 . Recycling Units 28 | . 1 . 2 . 1 1 . 7 . 4 . 2 . . . . 5 . . . . 4 . . . 1 . . . Scanalyzers 7 | . . . 2 . 2 . . . . . . 1 . . . . . . . . . 1 . 1 . . . . . Garrison Access 5 | . . . . . 1 . 1 . . 1 . . . . . . . . . . . . 1 . . 1 . . . Total Hacks 369 | . 23 1 44 1 40 5 18 37 24 37 . 33 . . 17 . 12 . 1 1 . 26 7 13 8 6 2 13 . Successful 217 | . 8 1 22 1 26 4 8 19 24 22 . 19 . . 17 . 8 . 1 1 . 14 1 8 5 1 1 6 . Failed 151 | . 15 . 21 . 14 1 10 18 . 15 . 14 . . . . 4 . . . . 12 6 5 3 5 1 7 . Catastrophic 16 | . 1 . 3 . 1 . . 1 . 1 . 4 . . . . . . . . . 2 . . . 2 . 1 . Database Lockouts 1 | . . . 1 . . . . . . . . . . . . . . . . . . . . . . . . . . Manual 154 | . 16 . 19 . 10 . 7 23 . 20 . 11 . . . . 10 . . . . 14 3 4 4 4 2 7 . Terminals 203 | . 22 . 29 . 23 2 16 21 . 22 . 16 . . . . 2 . . . . 12 6 11 8 1 2 10 . Fabricators 14 | . . . . . . . . . . 6 . 4 . . . . . . . . . 4 . . . . . . . Repair Stations 21 | . . . 4 . 8 2 . . . . . 4 . . . . . . . . . . . . . . . 3 . Recycling Units 58 | . 1 . 6 . 1 1 . 16 . 8 . 4 . . . . 10 . . . . 8 . . . 3 . . . Scanalyzers 20 | . . . 5 . 6 . . . . . . 5 . . . . . . . . . 2 . 2 . . . . . Garrison Access 8 | . . . . . 2 . 2 . . 1 . . . . . . . . . . . . 1 . . 2 . . . Terminal Hacks 95 | . 2 1 7 1 6 1 4 3 24 7 . 5 . . 17 . 1 . 1 1 . 3 . 4 4 . 1 2 . Record 28 | . . . . . . . . . 23 . . . . . 5 . . . . . . . . . . . . . . Part Schematic 5 | . . . . . . . . 1 . . . . . . 4 . . . . . . . . . . . . . . Robot Analysis 4 | . . . . . . . . . . . . . . . 4 . . . . . . . . . . . . . . Prototype ID Bank 12 | . 1 . 3 . 1 . . 1 . 1 . . . . 4 . . . . . . . . . 1 . . . . Open Door 9 | . . 1 . 1 . . 3 . 1 . . . . . . . . . 1 1 . . . 1 . . . . . Branch Access Points 6 | . . . 1 . . . . . . . . 1 . . . . 1 . . . . 1 . 1 . . 1 . . Garrison Index 1 | . . . . . . . . . . 1 . . . . . . . . . . . . . . . . . . . Unreport Threat 4 | . . . 1 . 1 . . 1 . . . . . . . . . . . . . . . . . . . 1 . Locate Traps 11 | . 1 . 1 . 2 1 . . . 1 . 2 . . . . . . . . . . . 1 1 . . 1 . Recall Extermination 1 | . . . . . . . . . . . . 1 . . . . . . . . . . . . . . . . . Recall Reinforcements 1 | . . . . . 1 . . . . . . . . . . . . . . . . . . . . . . . . Hauler Manifests 4 | . . . 1 . 1 . 1 . . 1 . . . . . . . . . . . . . . . . . . . Registered Components 2 | . . . . . . . . . . 1 . 1 . . . . . . . . . . . . . . . . . Zone Layout 7 | . . . . . . . . . . 2 . . . . . . . . . . . 2 . 1 2 . . . . Fabricator Hacks 5 | . . . . . . . . . . 3 . 1 . . . . . . . . . 1 . . . . . . . Network Status 3 | . . . . . . . . . . 1 . 1 . . . . . . . . . 1 . . . . . . . Load Schematic 1 | . . . . . . . . . . 1 . . . . . . . . . . . . . . . . . . . Build 1 | . . . . . . . . . . 1 . . . . . . . . . . . . . . . . . . . Repair Station Hacks 16 | . . . 4 . 6 2 . . . . . 2 . . . . . . . . . . . . . . . 2 . Scan Component 8 | . . . 2 . 3 1 . . . . . 1 . . . . . . . . . . . . . . . 1 . Repair 8 | . . . 2 . 3 1 . . . . . 1 . . . . . . . . . . . . . . . 1 . Recycling Unit Hacks 11 | . . . 1 . 1 1 . 5 . . . 1 . . . . 1 . . . . 1 . . . . . . . Retrieve Components 11 | . . . 1 . 1 1 . 5 . . . 1 . . . . 1 . . . . 1 . . . . . . . Scanalyzer 17 | . . . 3 . 6 . . . . . . 4 . . . . . . . . . 2 . 2 . . . . . Retrieve Study 17 | . . . 3 . 6 . . . . . . 4 . . . . . . . . . 2 . 2 . . . . . Garrison Access Hacks 4 | . . . . . 1 . 1 . . 1 . . . . . . . . . . . . 1 . . . . . . Seal Access 4 | . . . . . 1 . 1 . . 1 . . . . . . . . . . . . 1 . . . . . . Unauthorized Hacks 69 | . 6 . 7 . 6 . 3 11 . 11 . 6 . . . . 6 . . . . 7 . 2 1 1 . 2 . Terminals 42 | . 6 . 7 . 6 . 3 4 . 6 . 2 . . . . 1 . . . . 2 . 2 1 . . 2 . Track 3 | . . . . . . . . . . 1 . 1 . . . . 1 . . . . . . . . . . . . Assimilate 2 | . . . . . . . . . . 1 . . . . . . . . . . . 1 . . . . . . . Botnet 15 | . 1 . 2 . 1 . 1 1 . 2 . 1 . . . . . . . . . 1 . 2 1 . . 2 . Skim 22 | . 5 . 5 . 5 . 2 3 . 2 . . . . . . . . . . . . . . . . . . . Fabricators 3 | . . . . . . . . . . 1 . 1 . . . . . . . . . 1 . . . . . . . Prioritize 1 | . . . . . . . . . . 1 . . . . . . . . . . . . . . . . . . . Fabnet 2 | . . . . . . . . . . . . 1 . . . . . . . . . 1 . . . . . . . Repair Stations 1 | . . . . . . . . . . . . 1 . . . . . . . . . . . . . . . . . Patch 1 | . . . . . . . . . . . . 1 . . . . . . . . . . . . . . . . . Recycling Units 23 | . . . . . . . . 7 . 4 . 2 . . . . 5 . . . . 4 . . . 1 . . . Tunnel 7 | . . . . . . . . 7 . . . . . . . . . . . . . . . . . . . . . Fedlink 16 | . . . . . . . . . . 4 . 2 . . . . 5 . . . . 4 . . . 1 . . . Scanalyzers . | . . . . . . . . . . . . . . . . . . . . . . . . . . . . . . Garrison Access . | . . . . . . . . . . . . . . . . . . . . . . . . . . . . . . Data Cores Recovered 2 | . . . 1 . . . . . . . . . . . . . . . . . . . . . . . 1 . . Used . | . . . . . . . . . . . . . . . . . . . . . . . . . . . . . . Hacking Detections 90 | . 8 . 12 . 13 1 7 7 . 11 . 4 . . . . 2 . . . . 6 2 5 2 3 1 6 . Full Trace Events 9 | . 1 . 1 . 1 . . 3 . . . . . . . . . . . . . . . 1 . 1 . 1 . Feedback Events . | . . . . . . . . . . . . . . . . . . . . . . . . . . . . . . Feedback Blocked . | . . . . . . . . . . . . . . . . . . . . . . . . . . . . . . Robot Schematics Acquired 5 | . . . . . . . . . . . . . . . . . . . . . . . . . . 5 . . . Robots Built . | . . . . . . . . . . . . . . . . . . . . . . . . . . . . . . Authchips . | . . . . . . . . . . . . . . . . . . . . . . . . . . . . . . Time . | . . . . . . . . . . . . . . . . . . . . . . . . . . . . . . Total Robot Build Rating . | . . . . . . . . . . . . . . . . . . . . . . . . . . . . . . Part Schematics Acquired 20 | . . . . . . . . 1 . . . . . . 4 . . . . . . . . . . 15 . . . Parts Built 1 | . . . . . . . . . . 1 . . . . . . . . . . . . . . . . . . . Authchips 1 | . . . . . . . . . . 1 . . . . . . . . . . . . . . . . . . . Time 53 | . . . . . . . . . . 53 . . . . . . . . . . . . . . . . . . . Total Part Build Rating 6 | . . . . . . . . . . 6 . . . . . . . . . . . . . . . . . . . Part Studies Acquired 17 | . . . 3 . 6 . . . . . . 4 . . . . . . . . . 2 . 2 . . . . . Parts Repaired 8 | . . . 2 . 3 1 . . . . . 1 . . . . . . . . . . . . . . . 1 . Time 273 | . . . 58 . 120 25 . . . . . 44 . . . . . . . . . . . . . . . 26 . Parts Recycled . | . . . . . . . . . . . . . . . . . . . . . . . . . . . . . . Recycled Matter . | . . . . . . . . . . . . . . . . . . . . . . . . . . . . . . Retrieved Matter . | . . . . . . . . . . . . . . . . . . . . . . . . . . . . . . Retrieved Components 30 | . . . 2 . 9 1 . 14 . . . 1 . . . . 3 . . . . . . . . . . . . Parts Scanalyzed . | . . . . . . . . . . . . . . . . . . . . . . . . . . . . . . Part Schematics Acquired . | . . . . . . . . . . . . . . . . . . . . . . . . . . . . . . Parts Damaged . | . . . . . . . . . . . . . . . . . . . . . . . . . . . . . . Bothacking | -11 -10 -10 -9 -9 -8 -7 -7 -7 -7 -5 -5 -5 -5 -5 -5 -4 -4 -4 -4 -4 -3 -3 -3 -2 -2 -2 -1 -1 -1 ------------ Run | Yrd Mat Min Mat Min Mat Fac Sto Rec Scr Fac Was Fac Upp Upp Zhi Pro Fac Upp Upp War Pro Res Tes Res Qua Frg Acc Com Ac0 Used RIF Installer . | . . . . . . . . . . . . . . . . . . . . . . . . . . . . . . Robots Hacked 28 | . . . . . . . . . . 1 . . . . . 1 . . . 3 1 . . . 1 19 1 1 . Non-combat 1 | . . . . . . . . . . 1 . . . . . . . . . . . . . . . . . . . Combat 27 | . . . . . . . . . . . . . . . . 1 . . . 3 1 . . . 1 19 1 1 . Robot Hacks Applied 1 | . . . . . . . . . . 1 . . . . . . . . . . . . . . . . . . . find_chute 1 | . . . . . . . . . . 1 . . . . . . . . . . . . . . . . . . . Relay Couplers Released . | . . . . . . . . . . . . . . . . . . . . . . . . . . . . . . Fabnet Peak Effective % 3 | . . . . . . . . . . . . . . . . 3 3 3 3 3 1 1 1 3 3 3 1 1 1 Autooverrided 27 | . . . . . . . . . . . . . . . . 1 . . . 3 1 . . . 1 19 1 1 . Robots Rewired . | . . . . . . . . . . . . . . . . . . . . . . . . . . . . . . Allies Hacked . | . . . . . . . . . . . . . . . . . . . . . . . . . . . . . . Hacks Repelled . | . . . . . . . . . . . . . . . . . . . . . . . . . . . . . . Allies | -11 -10 -10 -9 -9 -8 -7 -7 -7 -7 -5 -5 -5 -5 -5 -5 -4 -4 -4 -4 -4 -3 -3 -3 -2 -2 -2 -1 -1 -1 -------- Run | Yrd Mat Min Mat Min Mat Fac Sto Rec Scr Fac Was Fac Upp Upp Zhi Pro Fac Upp Upp War Pro Res Tes Res Qua Frg Acc Com Ac0 Total Allies 32 | . . . . . . . 2 . . 1 1 . . . . 1 . . . 3 1 1 . . 1 19 1 1 . Largest Group 2 | . . . . . . . 2 . . 1 1 . . . . 1 . . . 1 1 . . . 1 2 1 1 . Highest-Rated Group 111 | . . . . . . . 62 . . 8 31 . . . . 49 . . . 69 30 . . . 69 111 82 58 . Highest-Rated Ally 82 | . . . . . . . 31 . . 8 31 . . . . 49 . . . 69 30 . . . 69 69 82 58 . Total Orders 1 | . . . . . . . . . . 1 . . . . . . . . . . . . . . . . . . . STAY 1 | . . . . . . . . . . 1 . . . . . . . . . . . . . . . . . . . Ally Attacks 81 | . . . . . . . 11 . . . 16 . . . . 3 . . . 3 7 . . . 6 30 4 1 . Total Damage 2198 | . . . . . . . 207 . . . 184 . . . . 44 . . . 157 130 . . . 220 1135 74 47 . Kills 12 | . . . . . . . 1 . . . . . . . . . . . . . 2 . . . . 6 1 2 . Allies Corrupted 1 | . . . . . . . . . . . . . . . . . . . . . . . . . . 1 . . . Allies Melted 3 | . . . . . . . . . . . . . . . . . . . . 1 . . . . . 2 . . . Intel | -11 -10 -10 -9 -9 -8 -7 -7 -7 -7 -5 -5 -5 -5 -5 -5 -4 -4 -4 -4 -4 -3 -3 -3 -2 -2 -2 -1 -1 -1 ------- Run | Yrd Mat Min Mat Min Mat Fac Sto Rec Scr Fac Was Fac Upp Upp Zhi Pro Fac Upp Upp War Pro Res Tes Res Qua Frg Acc Com Ac0 Active Infowar (turns) 18154 | 17 176 1 . . . 589 . . 576 612 40 601 137 92 90 76 139 112 148 227 62 193 172 236 335 5027 2348 5206 942 Optics 12761 | . . . . . . . . . . . . . . . . . . . . . . . . . . 4265 2348 5206 942 Sensors 3840 | . . 1 . . . . . . 576 612 40 553 137 92 88 49 42 112 148 227 62 193 115 236 335 222 . . . Structural 4602 | . . . . . . 589 . . . 604 40 601 137 92 36 67 139 112 148 213 46 193 172 236 335 842 . . . Seismic 193 | 17 176 . . . . . . . . . . . . . . . . . . . . . . . . . . . . Triangulation 412 | . . . . . . . . . . . . . . . . . . . . . . . . . . . . . 412 Cloaking 4986 | . . . . . . . . . . . . . . . . . . . . . . . . . . 2430 680 1876 . Jamming 116 | . . . . . . . . . . . . . . . . . . . . . . . . 13 66 37 . . . Robot Analysis Total 4 | . . . . . . . . . . . . . . . 4 . . . . . . . . . . . . . . Derelict Logs Recovered 8 | . . 2 . 2 . . . . . . . . 2 1 . 1 . . . . . . . . . . . . . Drone Launches . | . . . . . . . . . . . . . . . . . . . . . . . . . . . . . . Drone Recoveries . | . . . . . . . . . . . . . . . . . . . . . . . . . . . . . . Exploration | -11 -10 -10 -9 -9 -8 -7 -7 -7 -7 -5 -5 -5 -5 -5 -5 -4 -4 -4 -4 -4 -3 -3 -3 -2 -2 -2 -1 -1 -1 ------------- Run | Yrd Mat Min Mat Min Mat Fac Sto Rec Scr Fac Was Fac Upp Upp Zhi Pro Fac Upp Upp War Pro Res Tes Res Qua Frg Acc Com Ac0 Turns Passed 34207 | 153 819 2833 2456 1519 2923 658 1186 1229 2277 612 40 607 137 92 90 86 139 112 148 1192 67 193 172 236 335 5400 2348 5206 942 Spaces Moved 33432 | 85 475 664 1000 713 1068 318 481 815 2002 1291 143 1279 306 248 187 248 342 294 376 1719 190 642 681 803 925 8905 991 4908 1333 Core 10 | 7 . . . . . . . . 3 . . . . . . . . . . . . . . . . . . . . Treads 4543 | . 142 664 1000 713 1068 318 481 157 . . . . . . . . . . . . . . . . . . . . . Legs 411 | 78 333 . . . . . . . . . . . . . . . . . . . . . . . . . . . . Wheels 2539 | . . . . . . . . 658 1881 . . . . . . . . . . . . . . . . . . . . Hover 7852 | . . . . . . . . . . . . . . . . . . . . . . . . . . 620 991 4908 1333 Flight 18077 | . . . . . . . . . 118 1291 143 1279 306 248 187 248 342 294 376 1719 190 642 681 803 925 8285 . . . Fastest Speed 14 | 50 120 160 160 200 200 160 160 115 32 21 28 28 28 28 28 28 28 24 24 23 23 19 20 20 14 22 33 32 32 Average Speed 57 | 114 131 160 194 200 201 160 166 144 109 25 28 28 28 28 28 28 28 27 24 24 23 20 21 22 22 27 33 32 32 Slowest Speed 400 | 120 160 160 200 200 400 160 240 230 175 99 28 28 28 28 28 28 28 28 24 28 23 22 25 23 28 300 33 92 98 Overloaded Moves . | . . . . . . . . . . . . . . . . . . . . . . . . . . . . . . Propulsion Burnouts . | . . . . . . . . . . . . . . . . . . . . . . . . . . . . . . Robots Hopped 64 | . . . . . . . . . . . . 2 . . . . 2 . . 3 . 8 8 8 8 25 . . . Potential Cave-ins . | . . . . . . . . . . . . . . . . . . . . . . . . . . . . . . Cave-ins Triggered . | . . . . . . . . . . . . . . . . . . . . . . . . . . . . . . Teleports 3 | . . . . . . . . . . . . . . . . . . . . . . . . . 1 . . 1 1 Exploration Rate (%) 60 | 5 90 98 95 99 88 14 88 94 93 33 77 48 56 45 60 61 14 52 58 89 48 29 54 29 81 89 13 61 42 Regions Visited 29 Branch Regions 18 Pre-discovered Areas 18 | . . 1 . . 1 . . 7 5 1 . . . . 3 . . . . . . . . . . . . . . Known Exits Taken 23 | . 1 1 1 1 1 1 1 . 1 . . 1 1 1 1 1 1 1 1 1 1 1 1 1 1 . 1 . . Unknown Exits Taken 4 | 1 . . . . . . . 1 . . . . . . . . . . . . . . . . . 1 . 1 . Scrap Searched 24 | . . 1 . 1 . . . . 11 . . . 2 2 . 1 . 2 2 . 2 . . . . . . . . Spaces Dug 388 | . . . . . 42 9 37 . . 38 . 34 3 . . 4 12 1 7 76 1 14 1 15 7 42 14 9 22 Terrain Destroyed 1085 | . . 4 14 . 87 9 67 1 . 80 . 34 3 . . 4 14 1 7 174 1 14 1 15 7 119 150 145 134 Melee 196 | . . . . . 3 9 . . . 18 . 32 2 . . 3 10 1 4 64 1 14 1 11 4 16 . 3 . Projectile 358 | . . . . . 13 . 2 1 . 3 . 2 1 . . 1 4 . 3 2 . . . 4 3 34 39 112 134 AOE 393 | . . 4 14 . 71 . 65 . . 59 . . . . . . . . . 108 . . . . . 53 . 19 . Terrain Rammed . | . . . . . . . . . . . . . . . . . . . . . . . . . . . . . . Walls Destroyed . | . . . . . . . . . . . . . . . . . . . . . . . . . . . . . . Machines Disabled . | . . . . . . . . . . . . . . . . . . . . . . . . . . . . . . Actions | -11 -10 -10 -9 -9 -8 -7 -7 -7 -7 -5 -5 -5 -5 -5 -5 -4 -4 -4 -4 -4 -3 -3 -3 -2 -2 -2 -1 -1 -1 --------- Run | Yrd Mat Min Mat Min Mat Fac Sto Rec Scr Fac Was Fac Upp Upp Zhi Pro Fac Upp Upp War Pro Res Tes Res Qua Frg Acc Com Ac0 Total 45933 | 114 587 2417 1302 753 1536 400 664 855 2080 1518 142 1472 353 269 203 255 363 321 425 2366 209 670 695 835 1015 11522 2592 8249 1751 Wait 8656 | 3 43 1735 136 5 226 26 20 12 18 117 . 140 42 21 . . . 22 32 504 14 10 9 1 49 1647 1053 2723 48 Move 33286 | 84 474 663 999 712 1067 317 480 814 2001 1291 142 1274 305 247 186 247 337 293 375 1712 189 626 664 787 910 8862 990 4906 1332 Hop 51 | . . . . . . . . . . . . 2 . . . . 2 . . 3 . 7 8 7 6 16 . . . Pick Up 283 | 5 6 2 21 5 21 3 9 1 26 4 . 1 1 . 1 . 2 1 1 9 . 4 1 1 9 110 2 24 13 Fast Attach 162 | 8 8 . 4 . 10 1 11 3 12 6 . 4 . . 2 . 2 . 2 5 1 1 5 . 10 49 3 14 1 Attach 204 | . 1 . 3 . 8 3 4 . 5 13 . 3 1 1 . 1 3 . 3 13 2 4 1 11 4 75 2 14 29 Detach 136 | . . . . . 1 2 1 . 1 6 . 2 1 . . 1 2 . 3 9 . 1 1 9 1 72 . 5 18 Swap 454 | . 3 4 20 1 30 10 25 . . 4 . . . . . . . 2 . 9 2 . 1 . . 55 155 83 50 Drop 324 | 1 8 1 19 3 33 4 15 14 17 15 . 3 . . 1 . . 1 2 10 . 2 3 2 7 132 1 18 12 Fire 1551 | 13 44 8 95 22 135 19 73 8 . 9 . 2 1 . . 1 5 . 3 14 . . . 4 3 209 362 364 157 Melee 497 | . . . . . 3 15 7 . . 38 . 35 2 . 13 5 10 2 4 70 1 15 2 13 16 96 . 59 91 Ram 2 | . . . . . . . . 2 . . . . . . . . . . . . . . . . . . . . . Kick . | . . . . . . . . . . . . . . . . . . . . . . . . . . . . . . Crush 20 | . . 4 5 5 2 . 3 1 . . . . . . . . . . . . . . . . . . . . . Escape Stasis 242 | . . . . . . . . . . 15 . 6 . . . . . . . . . . . . . 158 24 39 . Rewire 1 | . . . . . . . . . . . . . . . . . . . . . . . . . . 1 . . . Trap . | . . . . . . . . . . . . . . . . . . . . . . . . . . . . . . Miscellaneous 64 | . . . . . . . 16 . . . . . . . . . . . . 8 . . . . . 40 . . . Route ------- -11/Scrapyard -10/Materials (discovered 6 exits: *Mat x3 / *Min x2 / Sub) -10/Mines (discovered 3 exits: *Mat x2 / [*Exi]) -9/Materials (discovered 5 exits: *Mat x3 / *Min x2) -9/Mines (discovered 3 exits: *Mat x2 / [*Zio]) -8/Materials (discovered 3 exits: *Fac x3) -7/Factory -7/Storage (discovered 2 exits: *Fac / *Rec) -7/Recycling (discovered 2 exits: *Fac / *Scr) -7/Scraptown (discovered 2 exits: *Fac x2) -5/Factory (discovered 6 exits: *Fac x4 / *Upp x2) -5/Waste -5/Factory (discovered 2 exits: *Upp x2) -5/Upper Caves -5/Upper Caves -5/Zhirov -4/Proximity Caves -4/Factory (discovered 4 exits: Res x2 / *Upp x2) -4/Upper Caves -4/Upper Caves (discovered 2 exits: Res / *War) -4/Warlord -3/Proximity Caves -3/Research (discovered 3 exits: *Arm / *Tes x2) -3/Testing -2/Research (discovered 2 exits: *Qua x2) -2/Quarantine (discovered 3 exits: *Acc / [*Sec] / *Frg) -2/Protoforge -1/Access -1/Command (discovered 3 exits: [Sur x2] / [*Ac0]) -1/Access_0 Near Former Tau Ceti IV History --------- Turn | Location | Event 4 | -11/Scrapyard | Discovered new exit (range 16) 154 | -11/Scrapyard | Entered Materials 318 | -10/Materials | Build established: Mutant 351 | -10/Materials | Discovered new exit (range 4) 367 | -10/Materials | Discovered new exit (range 16) 565 | -10/Materials | Discovered new exit (range 9) 653 | -10/Materials | Identified exit to Mines 728 | -10/Materials | Learned Storage security intel 795 | -10/Materials | Identified exit to Materials 795 | -10/Materials | Identified exit to Subcaves 852 | -10/Materials | Learned 4 Recycling zone layouts 901 | -10/Materials | Learned location of 1 exit from Storage 940 | -10/Materials | Learned location of 2 exits from Subcaves 973 | -10/Materials | Entered Mines 995 | -10/Mines | Met a Derelict bent on vengeance 1074 | -10/Mines | Discovered exit to Materials (range 7) 1101 | -10/Mines | Learned location of 1 exit from Materials 1356 | -10/Mines | Met a Derelict who couldn't figure out how to use a Trap Extractor 1745 | -10/Mines | Deemed a non-threat by the Exiles lab entrance 1745 | -10/Mines | Discovered new exit (range 5) 1911 | -10/Mines | Assembled infested the area 3536 | -10/Mines | Discovered exit to Materials (range 5) 3625 | -10/Mines | Found a damaged Exp. Sensor Array with a note attached 3629 | -10/Mines | Found Prototype Device 3630 | -10/Mines | Identified Exp. Sensor Array 3806 | -10/Mines | Entered Materials 3806 | -9/Materials | Evolved 2 slots: Propulsion x1, Weapon x1 3807 | -9/Materials | Identified exit to Mines 3808 | -9/Materials | Identified exit to Materials 3882 | -9/Materials | Repaired Assault Rifle 3962 | -9/Materials | Discovered exit to Mines (range 9) 4284 | -9/Materials | Build established: Scavenger-Tank 4312 | -9/Materials | Central database locked down 4805 | -9/Materials | Learned location of 3 exits from Materials 4829 | -9/Materials | Discovered exit to Materials (range 16) 4864 | -9/Materials | Learned Storage terminal intel 5030 | -9/Materials | Learned location of 1 exit from Storage 5061 | -9/Materials | Learned Storage trap positions 5102 | -9/Materials | Learned 4 Recycling zone layouts 5154 | -9/Materials | Learned Storage trap positions 5953 | -9/Materials | Repaired Hvy. Assault Rifle 6262 | -9/Materials | Entered Mines 6267 | -9/Mines | Met a Derelict shopkeep closing up shop 6344 | -9/Mines | Learned Materials emergency access door positions 6471 | -9/Mines | Discovered exit to Materials (range 11) 7006 | -9/Mines | Discovered exit to Materials (range 8) 7410 | -9/Mines | A Derelict revealed a hidden shortcut to a safe place 7643 | -9/Mines | Learned location of 1 exit from Materials 7659 | -9/Mines | A weapon hastily lodged in a ceiling crevice suddenly fell to the ground 7781 | -9/Mines | Entered Materials 7781 | -8/Materials | Evolved 2 slots: Utility x2 7782 | -8/Materials | Identified exit to Factory 8078 | -8/Materials | Repaired Shotgun 8123 | -8/Materials | Repaired Imp. Medium Armor Plating 8384 | -8/Materials | Build established: Scavenger-Gunner 9267 | -8/Materials | Repaired Hvy. Battle Rifle 9626 | -8/Materials | Learned location of 1 exit from Lower Caves 9689 | -8/Materials | Learned location of 2 exits from Lower Caves 9779 | -8/Materials | Learned Factory garrison access intel 9806 | -8/Materials | Learned location of 1 exit from Extension 9885 | -8/Materials | Learned location of Zion (-7) 10431 | -8/Materials | Core integrity fell below 50% 10704 | -8/Materials | Entered Factory 10704 | -7/Factory | Evolved 2 slots: Propulsion x1, Utility x1 10705 | -7/Factory | Identified exit to Storage 10706 | -7/Factory | Loaded intel: 3 garrison access locations 11268 | -7/Factory | Build established: Mutant 11277 | -7/Factory | Repaired Imp. Assault Rifle 11362 | -7/Factory | Entered Storage 11363 | -7/Storage | Identified exit to Factory 11363 | -7/Storage | Identified exit to Recycling 11364 | -7/Storage | Loaded intel: 19 trap records 11366 | -7/Storage | Loaded intel: 15 terminal locations 11607 | -7/Storage | Build established: Gunner 12222 | -7/Storage | Met a pair of Derelict thieves 12343 | -7/Storage | Destroyed 7 combat bots 12539 | -7/Storage | Used back door to open Recycling access 12548 | -7/Storage | Entered Recycling 12916 | -7/Recycling | Discovered new exit (range 5) 13513 | -7/Recycling | Build established: Scavenger-Gunner 13747 | -7/Recycling | Scanned before Scraplab entrance 13766 | -7/Recycling | Entered Scraplab 13775 | -7/Recycling | Discovered new exit (range 2) 13777 | -7/Recycling | Entered Scraptown 13777 | -7/Scraptown | System corruption cleaned by C-Scrubber 13788 | -7/Scraptown | System corruption cleaned by C-Scrubber 13945 | -7/Scraptown | Visited Shadow of the Wyrm 13962 | -7/Scraptown | Visited CR-KLE's Repair Center 13986 | -7/Scraptown | Heard Great Nut preacher, LISTEN AND RECITE! 14055 | -7/Scraptown | Build established: Mutant 14214 | -7/Scraptown | Discovered new exit (range 7) 14296 | -7/Scraptown | Visited Symbiants 14298 | -7/Scraptown | Received an X-ray algorithm 14305 | -7/Scraptown | Visited Cyclists 14358 | -7/Scraptown | Visited Bundlers 14426 | -7/Scraptown | Visited TADAMA 14453 | -7/Scraptown | Visited IN-MT5's Study 14482 | -7/Scraptown | Visited UFD Registry 14482 | -7/Scraptown | Registered with UFD as "Steamgrid" 14535 | -7/Scraptown | Entered Cyclist Reading Room 14620 | -7/Scraptown | Visited Cartography Club 14641 | -7/Scraptown | Visited DA-N13 Charitable Foundation 14647 | -7/Scraptown | Found DCF Scrap (30 items) 14701 | -7/Scraptown | Visited Abandonware Association 14831 | -7/Scraptown | Discovered new exit (range 3) 14867 | -7/Scraptown | Visited Modified Component R&D 14904 | -7/Scraptown | Visited Scrap Suit Storage 14939 | -7/Scraptown | Visited Chapter 10 14955 | -7/Scraptown | Visited Curators Association 14989 | -7/Scraptown | Visited Science Testing Area 15005 | -7/Scraptown | Visited Research Penetration Think Tank 15312 | -7/Scraptown | Found Deep Structural Scanner 15316 | -7/Scraptown | Learned location of Upper Caves (-5) 15316 | -7/Scraptown | Learned location of Cetus (-6) 15316 | -7/Scraptown | Learned location of Quarantine (-2) 15316 | -7/Scraptown | Learned 16 Materials zone layouts 15316 | -7/Scraptown | Learned 12 Factory zone layouts 15316 | -7/Scraptown | Learned 20 Factory zone layouts 15316 | -7/Scraptown | Learned 4 Access zone layouts 15316 | -7/Scraptown | Learned 4 Storage zone layouts 15316 | -7/Scraptown | Learned 12 Lower Caves zone layouts 15316 | -7/Scraptown | Learned 20 Lower Caves zone layouts 15316 | -7/Scraptown | Learned 16 Proximity Caves zone layouts 15316 | -7/Scraptown | Learned 24 Proximity Caves zone layouts 15316 | -7/Scraptown | Learned 4 Hub_04(d) zone layouts 15316 | -7/Scraptown | Learned location of 1 exit from Factory 15316 | -7/Scraptown | Learned location of 3 exits from Lower Caves 15479 | -7/Scraptown | CR-KLE repaired 4 parts 15622 | -7/Scraptown | Build established: Scavenger-Mutant 15920 | -7/Scraptown | Visited Sword Containment 15932 | -7/Scraptown | Found Prototype Slashing Weapon 15932 | -7/Scraptown | Identified Companion Sword 15991 | -7/Scraptown | Met Optimus 15991 | -7/Scraptown | Accepted into 0bPrime 16050 | -7/Scraptown | Identified exit to Factory 16054 | -7/Scraptown | Entered Factory 16054 | -5/Factory | Evolved 4 slots: Propulsion x2, Utility x2 16055 | -5/Factory | Identified exit to Factory 16055 | -5/Factory | Identified exit to Upper Caves 16243 | -5/Factory | Spotted B-75 Beast 16303 | -5/Factory | Fabricated Nuclear Pulse Array (x1) 16408 | -5/Factory | Loaded intel: 8 recycling unit locations 16411 | -5/Factory | Learned location of Protoforge (-2) 16601 | -5/Factory | Build established: Hacker-Scout 16608 | -5/Factory | Cargo convoy interrupted 16666 | -5/Factory | Manually triggered Chute Trap 16666 | -5/Factory | Sucked down chute 16666 | -5/Factory | Entered Waste 16667 | -5/Waste | Met a frightened Derelict 16672 | -5/Waste | Spotted C-40 Crusher 16681 | -5/Waste | EMP discharged 16685 | -5/Waste | Spotted C-40 Crusher 16686 | -5/Waste | Spotted C-40 Crusher 16688 | -5/Waste | Spotted C-40 Crusher 16699 | -5/Waste | Spotted C-40 Crusher 16700 | -5/Waste | Spotted C-40 Crusher 16704 | -5/Waste | Discovered new exit (range 10) 16706 | -5/Waste | Identified exit to Factory 16706 | -5/Waste | Entered Factory 16974 | -5/Factory | Spotted B-75 Beast 17140 | -5/Factory | Loaded intel: 8 recycling unit locations 17226 | -5/Factory | Repaired Lyr. Light Armor Plating 17307 | -5/Factory | System corruption reached 10% 17313 | -5/Factory | Entered Upper Caves 17373 | -5/Upper Caves | Learned location of 1 exit from Factory 17414 | -5/Upper Caves | Learned 12 Factory zone layouts 17422 | -5/Upper Caves | Discovered new exit (range 14) 17450 | -5/Upper Caves | Identified exit to Upper Caves 17450 | -5/Upper Caves | Entered another Upper Caves area 17529 | -5/Upper Caves | Learned 12 Factory zone layouts 17538 | -5/Upper Caves | Discovered new exit (range 12) 17541 | -5/Upper Caves | Identified exit to Zhirov 17542 | -5/Upper Caves | Entered Zhirov 17542 | -5/Zhirov | Discovered new exit (range 3) 17548 | -5/Zhirov | Met Zhirov 17553 | -5/Zhirov | Learned location of Command (-1) 17555 | -5/Zhirov | Zhirov requested help retrieving the SGEMP Prototype 17560 | -5/Zhirov | Found Alien Artifact 17560 | -5/Zhirov | Identified Integrated Dissipator 17560 | -5/Zhirov | Installed Integrated Dissipator, increased core heat dissipation (+20) 17567 | -5/Zhirov | Found Alien Artifact 17631 | -5/Zhirov | Identified exit to Proximity Caves 17632 | -5/Zhirov | Entered Proximity Caves 17635 | -4/Proximity Caves | Spotter reported a threat 17649 | -4/Proximity Caves | Spotter reported a threat 17688 | -4/Proximity Caves | Spotter reported a threat 17715 | -4/Proximity Caves | Learned Research security intel 17718 | -4/Proximity Caves | Entered Factory 17718 | -4/Factory | Evolved 2 slots: Propulsion x1, Utility x1 17719 | -4/Factory | Identified exit to Research 17725 | -4/Factory | Identified exit to Upper Caves 17735 | -4/Factory | Loaded intel: 8 recycling unit locations 17820 | -4/Factory | Spotted B-86 Titan 17857 | -4/Factory | Entered Upper Caves 17959 | -4/Upper Caves | Discovered new exit (range 9) 17969 | -4/Upper Caves | Identified exit to Upper Caves 17969 | -4/Upper Caves | Entered another Upper Caves area 17977 | -4/Upper Caves | Discovered exit to Research (range 18) 18092 | -4/Upper Caves | Discovered new exit (range 15) 18100 | -4/Upper Caves | Found DCF Scrap (15 items) 18117 | -4/Upper Caves | Identified exit to Warlord 18117 | -4/Upper Caves | Entered Warlord 18118 | -4/Warlord | Identified exit to Proximity Caves 18125 | -4/Warlord | System corruption cleaned by Quarantine Array 18242 | -4/Warlord | Found Prototype Special Weapon 18242 | -4/Warlord | Identified RU-N14's Throwing Claymores v3 18245 | -4/Warlord | Found RU-N14's Throwing Claymores v3 18246 | -4/Warlord | Found RU-N14's Throwing Claymores v3 18260 | -4/Warlord | Rebuked by Warlord 18282 | -4/Warlord | Found Prototype Device 18282 | -4/Warlord | Identified Exp. Focal Shield 18285 | -4/Warlord | Warlord's base attacked by MAIN.C 18285 | -4/Warlord | Found Prototype Processor 18285 | -4/Warlord | Identified Exp. Targeting Computer 18549 | -4/Warlord | Spotted B-86 Titan 18569 | -4/Warlord | Spotted B-90 Cyclops 18590 | -4/Warlord | Warlord forces counterattacked 18649 | -4/Warlord | Build established: Hacker-Sprinter 18654 | -4/Warlord | Found RU-N14's Throwing Claymores v3 18864 | -4/Warlord | Spotted Executioner 18958 | -4/Warlord | Spotted Striker 18959 | -4/Warlord | Attached CPS modules to Striker. 18960 | -4/Warlord | Warlord base infiltrated, sounded retreat 19004 | -4/Warlord | Lost 4 allies 19064 | -4/Warlord | Spotted Executioner 19102 | -4/Warlord | Spotted Executioner 19165 | -4/Warlord | Spotted Striker 19220 | -4/Warlord | Spotted Executioner 19231 | -4/Warlord | Spotted B-90 Cyclops 19231 | -4/Warlord | Spotted Striker 19243 | -4/Warlord | Spotted Striker 19251 | -4/Warlord | Lost 18 allies 19309 | -4/Warlord | Entered Proximity Caves 19338 | -3/Proximity Caves | Lost 3 parts (1n2u) 19376 | -3/Proximity Caves | Entered Research 19376 | -3/Research | Evolved 2 slots: Power x1, Propulsion x1 19388 | -3/Research | Loaded intel: 5 recycling unit locations 19435 | -3/Research | Spotted B-86 Titan 19507 | -3/Research | Found Fusion Bomb Launcher 19515 | -3/Research | Discovered new exit (range 11) 19517 | -3/Research | Identified exit to Armory 19524 | -3/Research | Identified exit to Testing 19569 | -3/Research | Entered Testing 19589 | -3/Testing | Spotted Striker 19607 | -3/Testing | Build established: Hacker-Scout 19614 | -3/Testing | Spotted Striker 19656 | -3/Testing | Lost 3 parts (1n2u) 19666 | -3/Testing | Discovered new exit (range 12) 19668 | -3/Testing | Identified exit to Research 19741 | -3/Testing | Entered Research 19741 | -2/Research | Evolved 2 slots: Utility x2 19928 | -2/Research | Identified exit to Quarantine 19977 | -2/Research | Entered Quarantine 20053 | -2/Quarantine | Found Quantum Capacitor 20067 | -2/Quarantine | Found Alien Artifact 20116 | -2/Quarantine | Cryocooling Duct disabled 20131 | -2/Quarantine | Ambient heat levels rising (+20) 20131 | -2/Quarantine | Non-combat units ordered to evacuate 20145 | -2/Quarantine | Spotted Alpha 7 20151 | -2/Quarantine | Found Alien Artifact 20151 | -2/Quarantine | Identified Dimensional Node Initializer 20151 | -2/Quarantine | Initialized slip node 20157 | -2/Quarantine | Found Alien Artifact 20157 | -2/Quarantine | Identified Hpw. Transdimensional Reconstructor (x2) 20157 | -2/Quarantine | Warped through subspace to slip node 20159 | -2/Quarantine | Found Dimensional Node Initializer 20209 | -2/Quarantine | Found Alien Artifact 20227 | -2/Quarantine | Search patrols dispatched 20227 | -2/Quarantine | Found Alien Slashing Weapon 20227 | -2/Quarantine | Identified Sigix Broadsword 20242 | -2/Quarantine | Discovered new exit (range 9) 20259 | -2/Quarantine | Spotted Fortress 20279 | -2/Quarantine | Discovered new exit (range 6) 20279 | -2/Quarantine | Discovered new exit (range 7) 20280 | -2/Quarantine | Identified exit to Protoforge 20312 | -2/Quarantine | Entered Protoforge 20327 | -2/Protoforge | Spotted B-90 Cyclops 20349 | -2/Protoforge | Superfortress began startup sequence 20467 | -2/Protoforge | Found Prototype Device 20468 | -2/Protoforge | Found Prototype Device 20477 | -2/Protoforge | Identified Cep. Weapon Articulator (x2) 20497 | -2/Protoforge | UFD initiated attack on Protoforge (Readiness: High) 20497 | -2/Protoforge | Loaded intel: 3 recycling unit locations 20516 | -2/Protoforge | Spotted EXE-6 20520 | -2/Protoforge | Found Prototype Processor 20520 | -2/Protoforge | Identified Exp. Core Analyzer 20525 | -2/Protoforge | Found Prototype Ballistic Gun 20526 | -2/Protoforge | Found Prototype Ballistic Gun 20528 | -2/Protoforge | Identified Cep. XC Strikerail (x2) 20534 | -2/Protoforge | Optimus greeted in Protoforge 20541 | -2/Protoforge | Found Prototype Processor 20541 | -2/Protoforge | Identified Exp. Armor Integrity Analyzer 20552 | -2/Protoforge | Spotted SKR-2 20552 | -2/Protoforge | Spotted SKR-2 20561 | -2/Protoforge | Spotted EXE-6 20561 | -2/Protoforge | Spotted EXE-6 20631 | -2/Protoforge | Found Exp. Core Analyzer 20659 | -2/Protoforge | Forge Plexus network access discovered 20751 | -2/Protoforge | UFD reported confirmed Drillbomb installation 20755 | -2/Protoforge | Spotted Executioner 20787 | -2/Protoforge | Initialized slip node 20827 | -2/Protoforge | Build established: Scavenger-Sprinter 20829 | -2/Protoforge | Spotted Executioner 20844 | -2/Protoforge | Spotted Striker 20844 | -2/Protoforge | Spotted Striker 20845 | -2/Protoforge | UFD reported confirmed Drillbomb installation 20864 | -2/Protoforge | Lost 3 allies 20949 | -2/Protoforge | Spotted Executioner 20949 | -2/Protoforge | Spotted Striker 20978 | -2/Protoforge | Lost 4 allies 20989 | -2/Protoforge | Spotted Immortal 20989 | -2/Protoforge | Spotted Immortal 21021 | -2/Protoforge | Destroyed 10 combat bots 21024 | -2/Protoforge | Local machine network offline 21033 | -2/Protoforge | Destroyed Immortal 21077 | -2/Protoforge | Destroyed Immortal 21086 | -2/Protoforge | Found Prototype Device 21087 | -2/Protoforge | Identified Exp. Cloaking Device 21091 | -2/Protoforge | Spotted Immortal 21091 | -2/Protoforge | Spotted Immortal 21142 | -2/Protoforge | Destroyed Immortal 21144 | -2/Protoforge | Destroyed Immortal 21148 | -2/Protoforge | Found Cep. Antimissile System 21164 | -2/Protoforge | Spotted Decapitator 21164 | -2/Protoforge | Spotted Decapitator 21164 | -2/Protoforge | Spotted Decapitator 21164 | -2/Protoforge | Spotted Decapitator 21234 | -2/Protoforge | Spotted Decapitator 21234 | -2/Protoforge | Spotted Decapitator 21234 | -2/Protoforge | Spotted Decapitator 21240 | -2/Protoforge | Destroyed Decapitator 21247 | -2/Protoforge | Destroyed Decapitator 21253 | -2/Protoforge | Destroyed Decapitator 21275 | -2/Protoforge | Found Exp. Jetlance 21282 | -2/Protoforge | Found Cep. Miniperforator 21402 | -2/Protoforge | Found Cep. Fieldthrust Drive 21418 | -2/Protoforge | Destroyed Decapitator 21422 | -2/Protoforge | Destroyed Decapitator 21429 | -2/Protoforge | Destroyed Decapitator 21530 | -2/Protoforge | Found Cep. Antigrav Storage Unit 21567 | -2/Protoforge | Spotted Immortal 21678 | -2/Protoforge | Spotted Hotshot 21680 | -2/Protoforge | Destroyed Hotshot 21696 | -2/Protoforge | Spotted Hotshot 21699 | -2/Protoforge | Destroyed Hotshot 21729 | -2/Protoforge | Found Cep. Smart ZDS 21733 | -2/Protoforge | Found Faulty Cep. Rapid Grenade Launcher 21739 | -2/Protoforge | Found Faulty Cep. Rapid Grenade Launcher 21741 | -2/Protoforge | Found Faulty Cep. Rapid Grenade Launcher 21777 | -2/Protoforge | UFD reported confirmed Drillbomb installation 21781 | -2/Protoforge | Spotted AP7-3 21782 | -2/Protoforge | Spotted AP7-3 21817 | -2/Protoforge | Destroyed AP7-3 21820 | -2/Protoforge | Destroyed AP7-3 21844 | -2/Protoforge | Found Cep. Thermoelectric Network 21846 | -2/Protoforge | Found Cep. Thermoelectric Network 21848 | -2/Protoforge | Identified Subatomic Replicator 21848 | -2/Protoforge | Used Subatomic Replicator to replicate Faulty Cep. Cloak Mesh 21850 | -2/Protoforge | Found Faulty Cep. Cloak Mesh 21854 | -2/Protoforge | Found Cep. Core Analysis Suite 21855 | -2/Protoforge | Found Faulty Cep. Core Analysis Suite 21898 | -2/Protoforge | Additional patrols dispatched to research labs 21901 | -2/Protoforge | Found Cep. Nanofilaments [Tensile] 21901 | -2/Protoforge | Installed Cep. Nanofilaments [Tensile], 3 resistances modified: KI +20%, TH -10%, I +20% 21963 | -2/Protoforge | Found Crosscalibrator 21966 | -2/Protoforge | Found Cep. Antimissile System 22322 | -2/Protoforge | Build established: Scavenger-Gladiator 22351 | -2/Protoforge | UFD reported confirmed Drillbomb installation 22365 | -2/Protoforge | UFD reported confirmed Drillbomb installation 22421 | -2/Protoforge | Found Faulty Cep. Biometal Exoskeleton 22582 | -2/Protoforge | Found Cep. Plasma Driver 22583 | -2/Protoforge | Found Cep. Plasma Driver 22584 | -2/Protoforge | Found Faulty Cep. Plasma Driver 22613 | -2/Protoforge | Spotted Immortal 22613 | -2/Protoforge | Spotted Immortal 22631 | -2/Protoforge | Build established: Scavenger-Sprinter 22650 | -2/Protoforge | Destroyed Immortal 22678 | -2/Protoforge | Destroyed Immortal 22688 | -2/Protoforge | Found Prototype Processor 22688 | -2/Protoforge | Identified Exp. Melee Analysis Suite 22702 | -2/Protoforge | Spotted V227-r 22704 | -2/Protoforge | Spotted V121-m 22713 | -2/Protoforge | Destroyed V121-m 22729 | -2/Protoforge | Found Cep. Network Penetrator 22775 | -2/Protoforge | Spotted V592-r 22788 | -2/Protoforge | Destroyed V592-r 22799 | -2/Protoforge | Found Exp. Jetlance 22859 | -2/Protoforge | Spotted V404-a 22867 | -2/Protoforge | Found Mni. Quantum Capacitor 22869 | -2/Protoforge | Found Cep. Weapon Articulator 22871 | -2/Protoforge | Found Femtoactuators 22872 | -2/Protoforge | Found Mni. Quantum Capacitor 22874 | -2/Protoforge | Found Faulty Exp. Force Booster 22876 | -2/Protoforge | Spotted V533-i 22877 | -2/Protoforge | Spotted V541-z 22883 | -2/Protoforge | Found Faulty Exp. Force Booster 22960 | -2/Protoforge | UFD reported confirmed Drillbomb installation 23099 | -2/Protoforge | Spotted Decapitator 23099 | -2/Protoforge | Spotted Decapitator 23099 | -2/Protoforge | Spotted V333-y 23099 | -2/Protoforge | Spotted Decapitator 23108 | -2/Protoforge | Found Cep. Phase Shift Module 23109 | -2/Protoforge | Found Cep. Core Shell 23111 | -2/Protoforge | Found Faulty Exp. Remote Shield 23114 | -2/Protoforge | Found Faulty Exp. Remote Shield 23121 | -2/Protoforge | Found Faulty Cep. Phase Shift Module 23122 | -2/Protoforge | Found Cep. Energy Mantle 23124 | -2/Protoforge | Found Cep. Reaction Jets 23144 | -2/Protoforge | Destroyed Decapitator 23148 | -2/Protoforge | Destroyed Decapitator 23156 | -2/Protoforge | Destroyed Decapitator 23469 | -2/Protoforge | Spotted V895-r 23469 | -2/Protoforge | Spotted V972-i 23469 | -2/Protoforge | Spotted V834-m 23473 | -2/Protoforge | Found Cep. Zero-point Core 23475 | -2/Protoforge | Found Cep. Zero-point Core 23533 | -2/Protoforge | Found Cep. Weapon Articulator 23534 | -2/Protoforge | Found Cep. Weapon Articulator 23610 | -2/Protoforge | Found Cep. NT7 Matterbank 23685 | -2/Protoforge | Found UFD Drillbomb 23734 | -2/Protoforge | Spotted Executioner 23782 | -2/Protoforge | Spotted Executioner 23794 | -2/Protoforge | Spotted Hotshot 23795 | -2/Protoforge | Spotted Hotshot 23857 | -2/Protoforge | P-80 Master assimilated allied ST-FX9(E) 23941 | -2/Protoforge | Spotted 02F41-K 23979 | -2/Protoforge | Lost 4 allies 24013 | -2/Protoforge | Destroyed Hotshot 24044 | -2/Protoforge | Installed UFD Drillbomb at designated target 24044 | -2/Protoforge | UFD reported confirmed Drillbomb installation 24079 | -2/Protoforge | Found UFD Drillbomb 24204 | -2/Protoforge | Spotted Executioner 24205 | -2/Protoforge | Spotted Striker 24208 | -2/Protoforge | Spotted Striker 24210 | -2/Protoforge | Spotted Executioner 24246 | -2/Protoforge | Spotted Striker 24249 | -2/Protoforge | Destroyed Executioner 24276 | -2/Protoforge | Destroyed 7 combat bots 24287 | -2/Protoforge | Spotted Executioner 24292 | -2/Protoforge | Spotted Executioner 24292 | -2/Protoforge | Spotted Executioner 24293 | -2/Protoforge | Spotted Executioner 24333 | -2/Protoforge | Lost 10 allies 24347 | -2/Protoforge | Spotted Executioner 24350 | -2/Protoforge | Destroyed Executioner 24390 | -2/Protoforge | Lost 4 allies 24396 | -2/Protoforge | Installed UFD Drillbomb at designated target 24396 | -2/Protoforge | UFD reported confirmed Drillbomb installation 24413 | -2/Protoforge | Spotted Executioner 24414 | -2/Protoforge | Spotted Striker 24440 | -2/Protoforge | Spotted Executioner 24442 | -2/Protoforge | Destroyed Executioner 24448 | -2/Protoforge | Destroyed Executioner 24456 | -2/Protoforge | Spotted Striker 24456 | -2/Protoforge | Spotted Executioner 24461 | -2/Protoforge | Destroyed Executioner 24467 | -2/Protoforge | Destroyed Executioner 24473 | -2/Protoforge | Destroyed Striker 24495 | -2/Protoforge | Found UFD Drillbomb 24508 | -2/Protoforge | Destroyed 11 combat bots 24511 | -2/Protoforge | Spotted Executioner 24511 | -2/Protoforge | Spotted Striker 24511 | -2/Protoforge | Spotted Executioner 24511 | -2/Protoforge | Spotted Executioner 24544 | -2/Protoforge | Lost 13 allies 24571 | -2/Protoforge | Spotted Executioner 24571 | -2/Protoforge | Spotted Striker 24572 | -2/Protoforge | Spotted Executioner 24572 | -2/Protoforge | Spotted Executioner 24718 | -2/Protoforge | Installed UFD Drillbomb at designated target 24718 | -2/Protoforge | UFD reported confirmed Drillbomb installation 24729 | -2/Protoforge | Found UFD Drillbomb 24783 | -2/Protoforge | Spotted Striker 24805 | -2/Protoforge | Spotted Executioner 24837 | -2/Protoforge | Discovered new exit (range 22) 24890 | -2/Protoforge | Spotted Executioner 24890 | -2/Protoforge | Destroyed Executioner 24894 | -2/Protoforge | Spotted Executioner 24895 | -2/Protoforge | Destroyed Executioner 24895 | -2/Protoforge | Destroyed Executioner 24897 | -2/Protoforge | Spotted Striker 24897 | -2/Protoforge | Destroyed Striker 24898 | -2/Protoforge | Spotted Executioner 24901 | -2/Protoforge | Destroyed Executioner 25007 | -2/Protoforge | Spotted V414-i 25014 | -2/Protoforge | Found Cep. Zero-point Core 25015 | -2/Protoforge | Found Cep. Zero-point Core 25044 | -2/Protoforge | Found Cep. Antigrav Storage Unit 25046 | -2/Protoforge | Found Cep. Chromion Battery 25050 | -2/Protoforge | Found Cep. Chromion Battery 25052 | -2/Protoforge | Found Cep. Chromion Battery 25053 | -2/Protoforge | Found Faulty Cep. Matter Streamer 25062 | -2/Protoforge | Found Faulty Cep. Matter Streamer 25221 | -2/Protoforge | Found Cep. Combat Aerolev Unit 25229 | -2/Protoforge | Found Cep. Combat Aerolev Unit 25298 | -2/Protoforge | Found Cep. Combat Aerolev Unit 25300 | -2/Protoforge | Found Cep. Gyrokinetic System 25305 | -2/Protoforge | Found Cep. Gyrokinetic System 25309 | -2/Protoforge | Found Faulty Cep. Gyrokinetic System 25472 | -2/Protoforge | Spotted Executioner 25515 | -2/Protoforge | Spotted Striker 25648 | -2/Protoforge | Spotted Executioner 25657 | -2/Protoforge | Spotted Executioner 25657 | -2/Protoforge | Spotted Striker 25675 | -2/Protoforge | Spotted Executioner 25699 | -2/Protoforge | Spotted Executioner 25711 | -2/Protoforge | Installed UFD Drillbomb at designated target 25711 | -2/Protoforge | UFD reported confirmed Drillbomb installation 25712 | -2/Protoforge | UFD began Drillbomb countdown 25712 | -2/Protoforge | Entered Access 25712 | -1/Access | Evolved 2 slots: Power x1, Utility x1 25721 | -1/Access | Identified exit to Command 25749 | -1/Access | High security lockdown imminent 25758 | -1/Access | Spotted Striker 25829 | -1/Access | High security lockdown engaged 25967 | -1/Access | Garrison activated, responded to threat 26022 | -1/Access | Spotted Executioner 26030 | -1/Access | Destroyed 8 combat bots 26054 | -1/Access | Destroyed Executioner 26065 | -1/Access | Build established: Hacker-Sprinter 26187 | -1/Access | Destroyed 8 combat bots 26311 | -1/Access | Spotted Investigator 26312 | -1/Access | Scanned by Researcher 26313 | -1/Access | Destroyed Investigator 26343 | -1/Access | Destroyed 12 combat bots 26358 | -1/Access | Destroyed Executioner 26360 | -1/Access | Destroyed Executioner 26361 | -1/Access | Spotted Investigator 26362 | -1/Access | Spotted Executioner 26370 | -1/Access | Destroyed Executioner 26379 | -1/Access | Destroyed Investigator 26420 | -1/Access | Spotted Executioner 26427 | -1/Access | Spotted Executioner 26427 | -1/Access | Spotted Executioner 26427 | -1/Access | Destroyed Executioner 26427 | -1/Access | Destroyed Executioner 26433 | -1/Access | Destroyed Executioner 26449 | -1/Access | Destroyed Executioner 26450 | -1/Access | Spotted Executioner 26451 | -1/Access | Destroyed Executioner 26472 | -1/Access | Destroyed 43 combat bots 26473 | -1/Access | Spotted Executioner 26475 | -1/Access | Spotted Executioner 26480 | -1/Access | Destroyed Executioner 26482 | -1/Access | Destroyed Executioner 26490 | -1/Access | Spotted Striker 26491 | -1/Access | Spotted Striker 26493 | -1/Access | Destroyed Striker 26497 | -1/Access | Destroyed Striker 26534 | -1/Access | Destroyed 7 combat bots 26623 | -1/Access | Destroyed 8 combat bots 26698 | -1/Access | Spotted Executioner 26722 | -1/Access | Destroyed Executioner 26726 | -1/Access | Spotted Executioner 26728 | -1/Access | Spotted Executioner 26729 | -1/Access | Spotted Striker 26737 | -1/Access | Destroyed Striker 26746 | -1/Access | Spotted Investigator 26761 | -1/Access | Destroyed Executioner 26765 | -1/Access | Destroyed Investigator 26796 | -1/Access | Destroyed 21 combat bots 26811 | -1/Access | Spotted Striker 26811 | -1/Access | Spotted Striker 26812 | -1/Access | Destroyed Striker 26820 | -1/Access | Destroyed Striker 26864 | -1/Access | Spotted Striker 26865 | -1/Access | Spotted Executioner 26866 | -1/Access | Spotted Executioner 26870 | -1/Access | Destroyed Executioner 26885 | -1/Access | Destroyed Striker 26885 | -1/Access | Destroyed Executioner 26897 | -1/Access | Spotted Striker 26897 | -1/Access | Spotted Striker 26898 | -1/Access | Destroyed Striker 26900 | -1/Access | Destroyed Striker 26923 | -1/Access | Destroyed 14 combat bots 26996 | -1/Access | Spotted Striker 26996 | -1/Access | Spotted Executioner 26996 | -1/Access | Spotted Executioner 27000 | -1/Access | Destroyed Executioner 27002 | -1/Access | Destroyed Striker 27006 | -1/Access | Destroyed Executioner 27124 | -1/Access | Spotted Striker 27257 | -1/Access | Spotted Executioner 27257 | -1/Access | Spotted Striker 27257 | -1/Access | Spotted Striker 27259 | -1/Access | Destroyed Striker 27263 | -1/Access | Destroyed Executioner 27267 | -1/Access | Destroyed Striker 27344 | -1/Access | Spotted Striker 27349 | -1/Access | Destroyed Striker 27374 | -1/Access | Destroyed 16 combat bots 27379 | -1/Access | Spotted Executioner 27380 | -1/Access | Spotted Executioner 27388 | -1/Access | Spotted Executioner 27388 | -1/Access | Spotted Executioner 27391 | -1/Access | Destroyed Executioner 27396 | -1/Access | Destroyed Executioner 27405 | -1/Access | Destroyed Executioner 27409 | -1/Access | Destroyed Executioner 27430 | -1/Access | Destroyed 10 combat bots 27457 | -1/Access | Spotted Executioner 27457 | -1/Access | Spotted Executioner 27457 | -1/Access | Spotted Executioner 27460 | -1/Access | Destroyed Executioner 27460 | -1/Access | Destroyed Executioner 27462 | -1/Access | Destroyed Executioner 27492 | -1/Access | Spotted Executioner 27497 | -1/Access | Spotted Striker 27499 | -1/Access | Destroyed Striker 27501 | -1/Access | Destroyed Executioner 27526 | -1/Access | Destroyed 7 combat bots 27606 | -1/Access | Spotted Executioner 27608 | -1/Access | Destroyed Executioner 27609 | -1/Access | Spotted Striker 27610 | -1/Access | Spotted Executioner 27610 | -1/Access | Destroyed Executioner 27618 | -1/Access | Destroyed Striker 27645 | -1/Access | Spotted Executioner 27650 | -1/Access | Spotted Executioner 27651 | -1/Access | Spotted Executioner 27653 | -1/Access | Destroyed Executioner 27654 | -1/Access | Spotted Striker 27657 | -1/Access | Destroyed Executioner 27660 | -1/Access | Destroyed Striker 27672 | -1/Access | Destroyed Executioner 27687 | -1/Access | Spotted Striker 27689 | -1/Access | Spotted Striker 27693 | -1/Access | Destroyed Striker 27695 | -1/Access | Destroyed Striker 27703 | -1/Access | Destroyed Executioner 27753 | -1/Access | Spotted Striker 27756 | -1/Access | Destroyed 26 combat bots 27757 | -1/Access | Destroyed Striker 27766 | -1/Access | Spotted Executioner 27767 | -1/Access | Spotted Striker 27769 | -1/Access | Destroyed Executioner 27771 | -1/Access | Spotted Striker 27771 | -1/Access | Spotted Striker 27771 | -1/Access | Spotted Striker 27772 | -1/Access | Destroyed Striker 27774 | -1/Access | Destroyed Striker 27783 | -1/Access | Destroyed Striker 27785 | -1/Access | Destroyed Striker 27806 | -1/Access | Destroyed 10 combat bots 27970 | -1/Access | Spotted Striker 27972 | -1/Access | Destroyed Striker 27995 | -1/Access | Destroyed 9 combat bots 28060 | -1/Access | Entered Command 28071 | -1/Command | Spotted B-99 Colossus 28174 | -1/Command | Repaired Exp. Propulsion Shielding 28202 | -1/Command | Spotted Striker 28202 | -1/Command | Spotted Striker 28204 | -1/Command | Destroyed Striker 28206 | -1/Command | Destroyed Striker 28245 | -1/Command | Spotted Executioner 28246 | -1/Command | Spotted Executioner 28254 | -1/Command | Destroyed Executioner 28271 | -1/Command | Destroyed Executioner 28292 | -1/Command | Destroyed 9 combat bots 28310 | -1/Command | First assault squad dispatched 28486 | -1/Command | High security lockdown imminent 28566 | -1/Command | High security lockdown engaged 28632 | -1/Command | Build established: Scavenger-Sprinter 28800 | -1/Command | Destroyed 16 combat bots 28853 | -1/Command | Spotted Executioner 28853 | -1/Command | Destroyed Executioner 28880 | -1/Command | Spotted Investigator 28882 | -1/Command | Destroyed Investigator 28962 | -1/Command | Destroyed 25 combat bots 29020 | -1/Command | Spotted Executioner 29022 | -1/Command | Destroyed Executioner 29037 | -1/Command | Spotted Investigator 29055 | -1/Command | Spotted Striker 29055 | -1/Command | Spotted Striker 29068 | -1/Command | Destroyed Investigator 29078 | -1/Command | Destroyed Striker 29081 | -1/Command | Destroyed Striker 29126 | -1/Command | Destroyed 31 combat bots 29445 | -1/Command | Spotted Striker 29445 | -1/Command | Spotted Striker 29448 | -1/Command | Destroyed Striker 29448 | -1/Command | Spotted Executioner 29453 | -1/Command | Spotted Striker 29453 | -1/Command | Spotted Striker 29454 | -1/Command | Spotted Striker 29454 | -1/Command | Destroyed Striker 29458 | -1/Command | Destroyed Striker 29461 | -1/Command | Destroyed Striker 29461 | -1/Command | Destroyed Striker 29462 | -1/Command | Destroyed Executioner 29473 | -1/Command | Spotted Striker 29476 | -1/Command | Destroyed Striker 29492 | -1/Command | Build established: Sprinter 29524 | -1/Command | Destroyed 23 combat bots 29534 | -1/Command | Spotted Executioner 29534 | -1/Command | Spotted Executioner 29534 | -1/Command | Spotted Striker 29535 | -1/Command | Destroyed Executioner 29539 | -1/Command | Destroyed Striker 29562 | -1/Command | Destroyed Executioner 29566 | -1/Command | Destroyed Striker 29602 | -1/Command | Destroyed 20 combat bots 29632 | -1/Command | Spotted Striker 29632 | -1/Command | Spotted Executioner 29636 | -1/Command | Destroyed Striker 29648 | -1/Command | Destroyed Executioner 29677 | -1/Command | Spotted Striker 29684 | -1/Command | Destroyed Striker 29714 | -1/Command | Destroyed 22 combat bots 29798 | -1/Command | Spotted Executioner 29800 | -1/Command | Spotted Striker 29805 | -1/Command | Destroyed Striker 29823 | -1/Command | Destroyed Executioner 29844 | -1/Command | Destroyed 8 combat bots 31294 | -1/Command | Spotted M Guard 31294 | -1/Command | Spotted M Guard 31294 | -1/Command | Spotted Combat Programmer 31294 | -1/Command | Spotted Combat Programmer 31296 | -1/Command | Destroyed M Guard 31306 | -1/Command | Destroyed M Guard 31321 | -1/Command | Destroyed Combat Programmer 31326 | -1/Command | Destroyed Combat Programmer 31326 | -1/Command | All MAIN.C guards destroyed 31347 | -1/Command | Destroyed 10 combat bots 31453 | -1/Command | Found Adv. Force Booster 31555 | -1/Command | Met MAIN.C 31570 | -1/Command | 0b10 Conduit disabled 31590 | -1/Command | Destroyed MAIN.C Shell 31592 | -1/Command | MAIN.C activated Command garrisons 31627 | -1/Command | Destroyed MAIN.C 31628 | -1/Command | Discovered new exit (range 47) 31628 | -1/Command | Discovered new exit (range 79) 31628 | -1/Command | Extracted map data and part IDs from MAIN.C's data core 31633 | -1/Command | Found Zero-point Reactor 31636 | -1/Command | Found Centrium Heavy Armor Plating 31733 | -1/Command | Spotted B-99 Colossus 31780 | -1/Command | Destroyed B-99 Colossus 32435 | -1/Command | Found Exp. System Purifier 32462 | -1/Command | Found Zero-point Reactor 32464 | -1/Command | Found Zero-point Reactor 32467 | -1/Command | Found Exp. Force Field 33259 | -1/Command | Warped through subspace to slip node 33259 | -1/Command | Discovered new exit (range 4) 33266 | -1/Command | Entered Access_0 33268 | -1/Access_0 | Met Architect 33275 | -1/Access_0 | Architect warped through subspace 33278 | -1/Access_0 | Destroyed A8 33334 | -1/Access_0 | Architect warped through subspace 33381 | -1/Access_0 | Architect warped through subspace 33384 | -1/Access_0 | Subspace Access Node disabled 33420 | -1/Access_0 | A6 warped into view 33426 | -1/Access_0 | Destroyed A6 33431 | -1/Access_0 | Architect warped through subspace 33472 | -1/Access_0 | Architect warped through subspace 33510 | -1/Access_0 | Architect warped through subspace 33513 | -1/Access_0 | Found Exp. Phase Shifter 33547 | -1/Access_0 | Architect warped through subspace 33569 | -1/Access_0 | A5 warped into view 33608 | -1/Access_0 | Destroyed A5 33618 | -1/Access_0 | Architect warped through subspace 33655 | -1/Access_0 | Lost 4 parts (1n2u1w) 33691 | -1/Access_0 | Architect warped through subspace 33727 | -1/Access_0 | Architect warped through subspace 33760 | -1/Access_0 | Architect warped through subspace 33789 | -1/Access_0 | Architect warped through subspace 33841 | -1/Access_0 | Architect warped through subspace 33852 | -1/Access_0 | Found Exp. Weapon Cycler 33869 | -1/Access_0 | Architect warped through subspace 33896 | -1/Access_0 | Architect warped through subspace 33922 | -1/Access_0 | Architect warped through subspace 33944 | -1/Access_0 | Architect warped through subspace 33968 | -1/Access_0 | Subspace Access Node disabled 33985 | -1/Access_0 | Architect warped through subspace 34013 | -1/Access_0 | Architect warped through subspace 34040 | -1/Access_0 | Architect warped through subspace 34061 | -1/Access_0 | Architect warped through subspace 34078 | -1/Access_0 | Architect warped through subspace 34097 | -1/Access_0 | Subspace Access Node disabled 34115 | -1/Access_0 | Architect warped through subspace 34134 | -1/Access_0 | Core integrity fell below 50% 34138 | -1/Access_0 | Architect warped through subspace 34153 | -1/Access_0 | Architect warped through subspace 34168 | -1/Access_0 | Architect warped through subspace 34177 | -1/Access_0 | Architect warped through subspace 34182 | -1/Access_0 | Subspace Access Node disabled 34198 | -1/Access_0 | Destroyed Architect 34199 | -1/Access_0 | Architect triggered a singularity event 34201 | -1/Access_0 | Extracted unknown sensor trigger ID from Architect's data core 34202 | -1/Access_0 | Found Hpw. Transdimensional Reconstructor 34203 | -1/Access_0 | Warped through subspace to slip node 34203 | -1/Access_0 | Discovered new exit (range 8) 34208 | *** | Escaped singularity! Last Messages --------------- 34199_ A0_COM: Initiating irreversible singularity event. Goodbye. 34199_ Extracted 3 energy. 34200_ A0_COM: 10. 34201_ A0_COM: 9. 34201_ Acquired data core, extracted unknown sensor trigger ID. 34201_ Acquired 75 matter. 34202_ A0_COM: 8. 34202_ Acquired Hpw. Transdimensional Reconstructor. 34203_ A0_COM: 7. 34203_ Warped through subspace, drawn to slip node. 34203_ EXIT=FOUND 34204_ A0_COM: 6. 34205_ A0_COM: 5. 34206_ A0_COM: 4. 34207_ A0_COM: 3. 34208_ A0_COM: 2. Map ----- +----------------------------------------------------+ | | | | | | | | | | | | | | | | | | | | | | | | | | | | | | | | | ?????????????????????????????????????????????????? | | ?????????????????????????????????????????????????? | | ?????????????????????????????????????????????????? | | ?????????????????????????????????????????????????? | | ?????????????????????????????????????????????????? | | ?????????????????????????????????????????????????? | | ????????????????????????###??????????????????????? | | ???????????????????????## ##?????????????????????? | | ???????????????????????# #?????????????????????? | | ???????????????????????# @ #?????????????????????? | | ??????????????????????## #?????????????????????? | | ??????????????????????# #?????????????????????? | | ??????????????????????# ##?????????????????????? | | ??????????????????????## #?????????????????????? | | ??????????????????????# #?????????????????????? | | ??????????????????????# ##?????????????????????? | | ??????????????????????# < #?????????????????????? | | ??????????????????????# ##?????????????????????? | | ??????????????????????## #??????????????????????? | | ???????????????????????####??????????????????????? | | ?????????????????????????????????????????????????? | | ?????????????????????????????????????????????????? | | ?????????????????????????????????????????????????? | | ?????????????????????????????????????????????????? | | ?????????????????????????????????????????????????? | | ?????????????????????????????????????????????????? | | ?????????????????????????????????????????????????? | | ?????????????????????????????????????????????????? | | ?????????????????????????????????????????????????? | | ?????????????????????????????????????????????????? | | ?????????????????????????????????????????????????? | | ?????????????????????????????????????????????????? | | ?????????????????????????????????????????????????? | | ?????????????????????????????????????????????????? | +----------------------------------------------------+ Best States ------------- Heat Dissipation 72 Energy Generation 89 Energy Capacity 1260 Matter Stores 300 Matter Capacity 300 Sight Range 23 Robot Scan Range 20 Terrain Scan Density 10 Jamming Range 16 Cloak Strength 9 EM Shielding 4 Armor Coverage 600 Resistance: KI 30 Resistance: I 20 Core Shielding 90 Propulsion Shielding 90 Weapon Shielding 90 Point Defense Rating 480 Melee Speed Boost 50 Phase Shifting 25 Evasion (%) 101 Targeting Accuracy 30 Melee Accuracy 12 Core Analysis 12 Armor Integrity Analysis 50 Recoil Reduction 4 Force Boost 40 Offensive Hacking 50 Defensive Hacking 14 Authchip Count 1 Item Schematics ----------------- Nuclear Pulse Array | -7/Recycling | Hacked Assault Drone Bay | -5/Zhirov | Free Exp. Heat Sink | -5/Zhirov | Free Exp. Optical Array | -5/Zhirov | Free Imp. Arc Thrower | -5/Zhirov | Free Spectral Analyzer | -2/Protoforge | Archive Adv. Remote Shield | -2/Protoforge | Archive Adv. Dynamic Insulation System | -2/Protoforge | Archive Hvy. Wave Gun | -2/Protoforge | Archive Plasma Sword | -2/Protoforge | Archive Helical Railgun | -2/Protoforge | Archive Lrn. Phase Cannon | -2/Protoforge | Archive Adv. Myomer Leg | -2/Protoforge | Archive Hds. Centrium Leg | -2/Protoforge | Archive Hvy. Tesla Rifle | -2/Protoforge | Archive Vibroblade | -2/Protoforge | Archive Exp. ECM Suite | -2/Protoforge | Archive Imp. Q-thruster | -2/Protoforge | Archive Electron Diverter | -2/Protoforge | Archive Hds. Centrium Heavy Treads | -2/Protoforge | Archive Robot Schematics ------------------ H-88 Terminator | -2/Protoforge | Archive M-30 Cleanser | -2/Protoforge | Archive G-73 Enforcer | -2/Protoforge | Archive R-06 Scavenger | -2/Protoforge | Archive A-02 Transporter | -2/Protoforge | Archive Fabricated ------------ Nuclear Pulse Array | x1 | -5/Factory | Authchip Repaired ---------- Assault Rifle | 35% | -9/Materials Hvy. Assault Rifle | 32% | -9/Materials Shotgun | 38% | -8/Materials Imp. Medium Armor Plating | 64% | -8/Materials Hvy. Battle Rifle | 18% | -8/Materials Imp. Assault Rifle | 14% | -7/Factory Lyr. Light Armor Plating | 19% | -5/Factory Exp. Propulsion Shielding | 2% | -1/Command Studied --------- Lgt. Treads | -9/Materials | Hacked Assault Rifle | -9/Materials | Hacked Lgt. Assault Rifle | -9/Materials | Hacked Hvy. Assault Rifle | -8/Materials | Hacked Lgt. Nuclear Core | -8/Materials | Hacked Missile Launcher | -8/Materials | Hacked VTOL Module | -8/Materials | Hacked Adv. Treads | -8/Materials | Hacked Mni. Grenade Launcher | -8/Materials | Hacked Nuclear Pulse Array | -5/Factory | Hacked Lgt. Fission Core | -5/Factory | Hacked Hvy. Rocket Launcher | -5/Factory | Hacked Field Propulsion Drive | -5/Factory | Hacked Mic. Fission Core | -3/Research | Hacked Impulse Thruster Array | -3/Research | Hacked Mic. Antimatter Reactor | -2/Research | Hacked Fusion Bomb Launcher | -2/Research | Hacked Alien Tech Used ----------------- Integrated Dissipator Dimensional Node Initializer High-powered Transdimensional Reconstructor Sigix Broadsword Subatomic Replicator Concept Nanofilaments [Tensile] Achievements -------------- None Challenges ------------ None Game ------ Seed CannonGodRegenerator Manual? 0 Play Time 08:34:36 Cumulative 423.7 hours Start 2025.11.20 @ 09:54:45 End 2025.11.21 @ 15:54:11 Sessions 7 Manual Loads 0 Difficulty Rogue Special Mode None Game No. 171 Rogue 171 Adventurer 0 Explorer 0 Win Type 6 Total 32 Types 2/4/13/0/0/1/9/0/1/2 Lore% 84 Gallery% 72 Achievement% 65 Wizard Run 0 Options --------- Layout 1 ASCII 0 Keyboard 0 Movement Arrows Keybinds 0 Fullscreen 2 Font 24/Terminus Map View 50x35 Zoom Use 0% Tactical HUD 1 Map Filters NONE Filters NONE Steam 1 RUN: 1586fe8a-a097-423f-94df-b6926b494801